Workbook

Sheet Testo

Sheet It0
G1: Intercetta | H1: Debito | I1: Insolvenza
D2: beta0 | E2: 0 | F2: 1 | G2: 1 | H2: 20 | I2: 0
D3: beta1 | E3: 0 | F3: 2 | G3: 1 | H3: 23 | I3: 0
F4: 3 | G4: 1 | H4: 24 | I4: 0
F5: 4 | G5: 1 | H5: 25 | I5: 0
D6: Iterations | E6: 6 | F6: 5 | G6: 1 | H6: 25 | I6: 1
F7: 6 | G7: 1 | H7: 26 | I7: 0
F8: 7 | G8: 1 | H8: 26 | I8: 0
F9: 8 | G9: 1 | H9: 28 | I9: 0
F10: 9 | G10: 1 | H10: 28 | I10: 0
F11: 10 | G11: 1 | H11: 29 | I11: 0
F12: 11 | G12: 1 | H12: 30 | I12: 0
F13: 12 | G13: 1 | H13: 30 | I13: 0
F14: 13 | G14: 1 | H14: 30 | I14: 0
F15: 14 | G15: 1 | H15: 30 | I15: 0
F16: 15 | G16: 1 | H16: 30 | I16: 0
F17: 16 | G17: 1 | H17: 30 | I17: 1
F18: 17 | G18: 1 | H18: 32 | I18: 0
F19: 18 | G19: 1 | H19: 32 | I19: 0
F20: 19 | G20: 1 | H20: 33 | I20: 0
F21: 20 | G21: 1 | H21: 33 | I21: 0
F22: 21 | G22: 1 | H22: 34 | I22: 0
F23: 22 | G23: 1 | H23: 34 | I23: 0
F24: 23 | G24: 1 | H24: 34 | I24: 1
F25: 24 | G25: 1 | H25: 34 | I25: 0
F26: 25 | G26: 1 | H26: 34 | I26: 0
F27: 26 | G27: 1 | H27: 35 | I27: 0
F28: 27 | G28: 1 | H28: 35 | I28: 0
F29: 28 | G29: 1 | H29: 36 | I29: 0
F30: 29 | G30: 1 | H30: 36 | I30: 1
F31: 30 | G31: 1 | H31: 36 | I31: 0
F32: 31 | G32: 1 | H32: 37 | I32: 0
F33: 32 | G33: 1 | H33: 37 | I33: 1
F34: 33 | G34: 1 | H34: 37 | I34: 0
F35: 34 | G35: 1 | H35: 38 | I35: 0
F36: 35 | G36: 1 | H36: 38 | I36: 0
F37: 36 | G37: 1 | H37: 39 | I37: 0
F38: 37 | G38: 1 | H38: 39 | I38: 1
F39: 38 | G39: 1 | H39: 40 | I39: 0
F40: 39 | G40: 1 | H40: 40 | I40: 1
F41: 40 | G41: 1 | H41: 41 | I41: 0
F42: 41 | G42: 1 | H42: 41 | I42: 0
F43: 42 | G43: 1 | H43: 42 | I43: 0
F44: 43 | G44: 1 | H44: 42 | I44: 0
F45: 44 | G45: 1 | H45: 42 | I45: 0
F46: 45 | G46: 1 | H46: 42 | I46: 1
F47: 46 | G47: 1 | H47: 43 | I47: 0
F48: 47 | G48: 1 | H48: 43 | I48: 0
F49: 48 | G49: 1 | H49: 43 | I49: 1
F50: 49 | G50: 1 | H50: 44 | I50: 0
F51: 50 | G51: 1 | H51: 44 | I51: 0
F52: 51 | G52: 1 | H52: 44 | I52: 1
F53: 52 | G53: 1 | H53: 44 | I53: 1
F54: 53 | G54: 1 | H54: 45 | I54: 0
F55: 54 | G55: 1 | H55: 45 | I55: 1
F56: 55 | G56: 1 | H56: 46 | I56: 0
F57: 56 | G57: 1 | H57: 46 | I57: 1
F58: 57 | G58: 1 | H58: 47 | I58: 0
F59: 58 | G59: 1 | H59: 47 | I59: 0
F60: 59 | G60: 1 | H60: 47 | I60: 1
F61: 60 | G61: 1 | H61: 48 | I61: 0
F62: 61 | G62: 1 | H62: 48 | I62: 1
F63: 62 | G63: 1 | H63: 48 | I63: 1
F64: 63 | G64: 1 | H64: 49 | I64: 0
F65: 64 | G65: 1 | H65: 49 | I65: 0
F66: 65 | G66: 1 | H66: 49 | I66: 1
F67: 66 | G67: 1 | H67: 50 | I67: 0
F68: 67 | G68: 1 | H68: 50 | I68: 1
F69: 68 | G69: 1 | H69: 51 | I69: 0
F70: 69 | G70: 1 | H70: 52 | I70: 0
F71: 70 | G71: 1 | H71: 52 | I71: 1
F72: 71 | G72: 1 | H72: 53 | I72: 1
F73: 72 | G73: 1 | H73: 53 | I73: 1
F74: 73 | G74: 1 | H74: 54 | I74: 1
F75: 74 | G75: 1 | H75: 55 | I75: 0
F76: 75 | G76: 1 | H76: 55 | I76: 1
F77: 76 | G77: 1 | H77: 55 | I77: 1
F78: 77 | G78: 1 | H78: 56 | I78: 1
F79: 78 | G79: 1 | H79: 56 | I79: 1
F80: 79 | G80: 1 | H80: 56 | I80: 1
F81: 80 | G81: 1 | H81: 57 | I81: 0
F82: 81 | G82: 1 | H82: 57 | I82: 0
F83: 82 | G83: 1 | H83: 57 | I83: 1
F84: 83 | G84: 1 | H84: 57 | I84: 1
F85: 84 | G85: 1 | H85: 57 | I85: 1
F86: 85 | G86: 1 | H86: 57 | I86: 1
F87: 86 | G87: 1 | H87: 58 | I87: 0
F88: 87 | G88: 1 | H88: 58 | I88: 1
F89: 88 | G89: 1 | H89: 58 | I89: 1
F90: 89 | G90: 1 | H90: 59 | I90: 1
F91: 90 | G91: 1 | H91: 59 | I91: 1
F92: 91 | G92: 1 | H92: 60 | I92: 0
F93: 92 | G93: 1 | H93: 60 | I93: 1
F94: 93 | G94: 1 | H94: 61 | I94: 1
F95: 94 | G95: 1 | H95: 62 | I95: 1
F96: 95 | G96: 1 | H96: 62 | I96: 1
F97: 96 | G97: 1 | H97: 63 | I97: 1
F98: 97 | G98: 1 | H98: 64 | I98: 0
F99: 98 | G99: 1 | H99: 64 | I99: 1
F100: 99 | G100: 1 | H100: 65 | I100: 1
F101: 100 | G101: 1 | H101: 69 | I101: 1

Sheet It1
A1: Beta iteration (i-1) | E1: Beta (iteration i) | G1: exp(X*beta) | H1: Calcolo del vettore p =probabilità stimate dato beta | I1: Calcolo diagonale principale matrice W | J1: Calcolo di z | K1: Calcolo di Xw | M1: Calcolo di zw
A2: beta0 | B2: =It0!E2:E3 -> 0 | E2: =Q4 -> -4.151841406 | F2: 1 | G2: =EXP(MMULT(It0!G2:H2,B$2:B$3)) -> 1 | H2: =G2/(1+G2) -> 0.5 | I2: =H2*(1-H2) -> 0.25 | J2: =MMULT(X,B2:B3)+(y-H2:H101)/I2:I101 -> -2 | K2: =SQRT(I2:I101)*X -> 0.5 | L2: 10 | M2: =SQRT(I2:I101)*J2:J101 -> -1 | P2: Calcolo del nuovo beta
A3: beta1 | B3: 0 | E3: =P4 -> 0.0872429339 | F3: 2 | G3: =EXP(MMULT(It0!G3:H3,B$2:B$3)) -> 1 | H3: =G3/(1+G3) -> 0.5 | I3: =H3*(1-H3) -> 0.25 | J3: -2 | K3: 0.5 | L3: 11.5 | M3: -1
F4: 3 | G4: =EXP(MMULT(It0!G4:H4,B$2:B$3)) -> 1 | H4: =G4/(1+G4) -> 0.5 | I4: 0.25 | J4: -2 | K4: 0.5 | L4: 12 | M4: -1 | P4: =LINEST(M2:M101,K2:L101,0,1) -> 0.0872429339 | Q4: -4.151841406
A5: Iterazione | B5: 1 | F5: 4 | G5: =EXP(MMULT(It0!G5:H5,B$2:B$3)) -> 1 | H5: 0.5 | I5: 0.25 | J5: -2 | K5: 0.5 | L5: 12.5 | M5: -1 | P5: 0.01471520712 | Q5: 0.6752340201
A6: Criterio di convergenza | F6: 5 | G6: =EXP(MMULT(It0!G6:H6,B$2:B$3)) -> 1 | H6: 0.5 | I6: 0.25 | J6: 2 | K6: 0.5 | L6: 12.5 | M6: 1 | P6: 0.2784148877 | Q6: 0.8580858576
B7: =SUMSQ(E2:E3-B2:B3)/SUMSQ(E2:E3) -> 1 | F7: 6 | G7: =EXP(MMULT(It0!G7:H7,B$2:B$3)) -> 1 | H7: 0.5 | I7: 0.25 | J7: -2 | K7: 0.5 | L7: 13 | M7: -1 | P7: 18.90605732 | Q7: 98
F8: 7 | G8: =EXP(MMULT(It0!G8:H8,B$2:B$3)) -> 1 | H8: 0.5 | I8: 0.25 | J8: -2 | K8: 0.5 | L8: 13 | M8: -1 | P8: 27.84148877 | Q8: 72.15851123
F9: 8 | G9: =EXP(MMULT(It0!G9:H9,B$2:B$3)) -> 1 | H9: 0.5 | I9: 0.25 | J9: -2 | K9: 0.5 | L9: 14 | M9: -1
F10: 9 | G10: =EXP(MMULT(It0!G10:H10,B$2:B$3)) -> 1 | H10: 0.5 | I10: 0.25 | J10: -2 | K10: 0.5 | L10: 14 | M10: -1 | P10: Regressione di zw su Xw
F11: 10 | G11: =EXP(MMULT(It0!G11:H11,B$2:B$3)) -> 1 | H11: 0.5 | I11: 0.25 | J11: -2 | K11: 0.5 | L11: 14.5 | M11: -1
F12: 11 | G12: =EXP(MMULT(It0!G12:H12,B$2:B$3)) -> 1 | H12: 0.5 | I12: 0.25 | J12: -2 | K12: 0.5 | L12: 15 | M12: -1
F13: 12 | G13: =EXP(MMULT(It0!G13:H13,B$2:B$3)) -> 1 | H13: 0.5 | I13: 0.25 | J13: -2 | K13: 0.5 | L13: 15 | M13: -1
F14: 13 | G14: =EXP(MMULT(It0!G14:H14,B$2:B$3)) -> 1 | H14: 0.5 | I14: 0.25 | J14: -2 | K14: 0.5 | L14: 15 | M14: -1
F15: 14 | G15: =EXP(MMULT(It0!G15:H15,B$2:B$3)) -> 1 | H15: 0.5 | I15: 0.25 | J15: -2 | K15: 0.5 | L15: 15 | M15: -1
F16: 15 | G16: =EXP(MMULT(It0!G16:H16,B$2:B$3)) -> 1 | H16: 0.5 | I16: 0.25 | J16: -2 | K16: 0.5 | L16: 15 | M16: -1
F17: 16 | G17: =EXP(MMULT(It0!G17:H17,B$2:B$3)) -> 1 | H17: 0.5 | I17: 0.25 | J17: 2 | K17: 0.5 | L17: 15 | M17: 1
F18: 17 | G18: =EXP(MMULT(It0!G18:H18,B$2:B$3)) -> 1 | H18: 0.5 | I18: 0.25 | J18: -2 | K18: 0.5 | L18: 16 | M18: -1
F19: 18 | G19: =EXP(MMULT(It0!G19:H19,B$2:B$3)) -> 1 | H19: 0.5 | I19: 0.25 | J19: -2 | K19: 0.5 | L19: 16 | M19: -1
F20: 19 | G20: =EXP(MMULT(It0!G20:H20,B$2:B$3)) -> 1 | H20: 0.5 | I20: 0.25 | J20: -2 | K20: 0.5 | L20: 16.5 | M20: -1
F21: 20 | G21: =EXP(MMULT(It0!G21:H21,B$2:B$3)) -> 1 | H21: 0.5 | I21: 0.25 | J21: -2 | K21: 0.5 | L21: 16.5 | M21: -1
F22: 21 | G22: =EXP(MMULT(It0!G22:H22,B$2:B$3)) -> 1 | H22: 0.5 | I22: 0.25 | J22: -2 | K22: 0.5 | L22: 17 | M22: -1
F23: 22 | G23: =EXP(MMULT(It0!G23:H23,B$2:B$3)) -> 1 | H23: 0.5 | I23: 0.25 | J23: -2 | K23: 0.5 | L23: 17 | M23: -1
F24: 23 | G24: =EXP(MMULT(It0!G24:H24,B$2:B$3)) -> 1 | H24: 0.5 | I24: 0.25 | J24: 2 | K24: 0.5 | L24: 17 | M24: 1
F25: 24 | G25: =EXP(MMULT(It0!G25:H25,B$2:B$3)) -> 1 | H25: 0.5 | I25: 0.25 | J25: -2 | K25: 0.5 | L25: 17 | M25: -1
F26: 25 | G26: =EXP(MMULT(It0!G26:H26,B$2:B$3)) -> 1 | H26: 0.5 | I26: 0.25 | J26: -2 | K26: 0.5 | L26: 17 | M26: -1
F27: 26 | G27: =EXP(MMULT(It0!G27:H27,B$2:B$3)) -> 1 | H27: 0.5 | I27: 0.25 | J27: -2 | K27: 0.5 | L27: 17.5 | M27: -1
F28: 27 | G28: =EXP(MMULT(It0!G28:H28,B$2:B$3)) -> 1 | H28: 0.5 | I28: 0.25 | J28: -2 | K28: 0.5 | L28: 17.5 | M28: -1
F29: 28 | G29: =EXP(MMULT(It0!G29:H29,B$2:B$3)) -> 1 | H29: 0.5 | I29: 0.25 | J29: -2 | K29: 0.5 | L29: 18 | M29: -1
F30: 29 | G30: =EXP(MMULT(It0!G30:H30,B$2:B$3)) -> 1 | H30: 0.5 | I30: 0.25 | J30: 2 | K30: 0.5 | L30: 18 | M30: 1
F31: 30 | G31: =EXP(MMULT(It0!G31:H31,B$2:B$3)) -> 1 | H31: 0.5 | I31: 0.25 | J31: -2 | K31: 0.5 | L31: 18 | M31: -1
F32: 31 | G32: =EXP(MMULT(It0!G32:H32,B$2:B$3)) -> 1 | H32: 0.5 | I32: 0.25 | J32: -2 | K32: 0.5 | L32: 18.5 | M32: -1
F33: 32 | G33: =EXP(MMULT(It0!G33:H33,B$2:B$3)) -> 1 | H33: 0.5 | I33: 0.25 | J33: 2 | K33: 0.5 | L33: 18.5 | M33: 1
F34: 33 | G34: =EXP(MMULT(It0!G34:H34,B$2:B$3)) -> 1 | H34: 0.5 | I34: 0.25 | J34: -2 | K34: 0.5 | L34: 18.5 | M34: -1
F35: 34 | G35: =EXP(MMULT(It0!G35:H35,B$2:B$3)) -> 1 | H35: 0.5 | I35: 0.25 | J35: -2 | K35: 0.5 | L35: 19 | M35: -1
F36: 35 | G36: =EXP(MMULT(It0!G36:H36,B$2:B$3)) -> 1 | H36: 0.5 | I36: 0.25 | J36: -2 | K36: 0.5 | L36: 19 | M36: -1
F37: 36 | G37: =EXP(MMULT(It0!G37:H37,B$2:B$3)) -> 1 | H37: 0.5 | I37: 0.25 | J37: -2 | K37: 0.5 | L37: 19.5 | M37: -1
F38: 37 | G38: =EXP(MMULT(It0!G38:H38,B$2:B$3)) -> 1 | H38: 0.5 | I38: 0.25 | J38: 2 | K38: 0.5 | L38: 19.5 | M38: 1
F39: 38 | G39: =EXP(MMULT(It0!G39:H39,B$2:B$3)) -> 1 | H39: 0.5 | I39: 0.25 | J39: -2 | K39: 0.5 | L39: 20 | M39: -1
F40: 39 | G40: =EXP(MMULT(It0!G40:H40,B$2:B$3)) -> 1 | H40: 0.5 | I40: 0.25 | J40: 2 | K40: 0.5 | L40: 20 | M40: 1
F41: 40 | G41: =EXP(MMULT(It0!G41:H41,B$2:B$3)) -> 1 | H41: 0.5 | I41: 0.25 | J41: -2 | K41: 0.5 | L41: 20.5 | M41: -1
F42: 41 | G42: =EXP(MMULT(It0!G42:H42,B$2:B$3)) -> 1 | H42: 0.5 | I42: 0.25 | J42: -2 | K42: 0.5 | L42: 20.5 | M42: -1
F43: 42 | G43: =EXP(MMULT(It0!G43:H43,B$2:B$3)) -> 1 | H43: 0.5 | I43: 0.25 | J43: -2 | K43: 0.5 | L43: 21 | M43: -1
F44: 43 | G44: =EXP(MMULT(It0!G44:H44,B$2:B$3)) -> 1 | H44: 0.5 | I44: 0.25 | J44: -2 | K44: 0.5 | L44: 21 | M44: -1
F45: 44 | G45: =EXP(MMULT(It0!G45:H45,B$2:B$3)) -> 1 | H45: 0.5 | I45: 0.25 | J45: -2 | K45: 0.5 | L45: 21 | M45: -1
F46: 45 | G46: =EXP(MMULT(It0!G46:H46,B$2:B$3)) -> 1 | H46: 0.5 | I46: 0.25 | J46: 2 | K46: 0.5 | L46: 21 | M46: 1
F47: 46 | G47: =EXP(MMULT(It0!G47:H47,B$2:B$3)) -> 1 | H47: 0.5 | I47: 0.25 | J47: -2 | K47: 0.5 | L47: 21.5 | M47: -1
F48: 47 | G48: =EXP(MMULT(It0!G48:H48,B$2:B$3)) -> 1 | H48: 0.5 | I48: 0.25 | J48: -2 | K48: 0.5 | L48: 21.5 | M48: -1
F49: 48 | G49: =EXP(MMULT(It0!G49:H49,B$2:B$3)) -> 1 | H49: 0.5 | I49: 0.25 | J49: 2 | K49: 0.5 | L49: 21.5 | M49: 1
F50: 49 | G50: =EXP(MMULT(It0!G50:H50,B$2:B$3)) -> 1 | H50: 0.5 | I50: 0.25 | J50: -2 | K50: 0.5 | L50: 22 | M50: -1
F51: 50 | G51: =EXP(MMULT(It0!G51:H51,B$2:B$3)) -> 1 | H51: 0.5 | I51: 0.25 | J51: -2 | K51: 0.5 | L51: 22 | M51: -1
F52: 51 | G52: =EXP(MMULT(It0!G52:H52,B$2:B$3)) -> 1 | H52: 0.5 | I52: 0.25 | J52: 2 | K52: 0.5 | L52: 22 | M52: 1
F53: 52 | G53: =EXP(MMULT(It0!G53:H53,B$2:B$3)) -> 1 | H53: 0.5 | I53: 0.25 | J53: 2 | K53: 0.5 | L53: 22 | M53: 1
F54: 53 | G54: =EXP(MMULT(It0!G54:H54,B$2:B$3)) -> 1 | H54: 0.5 | I54: 0.25 | J54: -2 | K54: 0.5 | L54: 22.5 | M54: -1
F55: 54 | G55: =EXP(MMULT(It0!G55:H55,B$2:B$3)) -> 1 | H55: 0.5 | I55: 0.25 | J55: 2 | K55: 0.5 | L55: 22.5 | M55: 1
F56: 55 | G56: =EXP(MMULT(It0!G56:H56,B$2:B$3)) -> 1 | H56: 0.5 | I56: 0.25 | J56: -2 | K56: 0.5 | L56: 23 | M56: -1
F57: 56 | G57: =EXP(MMULT(It0!G57:H57,B$2:B$3)) -> 1 | H57: 0.5 | I57: 0.25 | J57: 2 | K57: 0.5 | L57: 23 | M57: 1
F58: 57 | G58: =EXP(MMULT(It0!G58:H58,B$2:B$3)) -> 1 | H58: 0.5 | I58: 0.25 | J58: -2 | K58: 0.5 | L58: 23.5 | M58: -1
F59: 58 | G59: =EXP(MMULT(It0!G59:H59,B$2:B$3)) -> 1 | H59: 0.5 | I59: 0.25 | J59: -2 | K59: 0.5 | L59: 23.5 | M59: -1
F60: 59 | G60: =EXP(MMULT(It0!G60:H60,B$2:B$3)) -> 1 | H60: 0.5 | I60: 0.25 | J60: 2 | K60: 0.5 | L60: 23.5 | M60: 1
F61: 60 | G61: =EXP(MMULT(It0!G61:H61,B$2:B$3)) -> 1 | H61: 0.5 | I61: 0.25 | J61: -2 | K61: 0.5 | L61: 24 | M61: -1
F62: 61 | G62: =EXP(MMULT(It0!G62:H62,B$2:B$3)) -> 1 | H62: 0.5 | I62: 0.25 | J62: 2 | K62: 0.5 | L62: 24 | M62: 1
F63: 62 | G63: =EXP(MMULT(It0!G63:H63,B$2:B$3)) -> 1 | H63: 0.5 | I63: 0.25 | J63: 2 | K63: 0.5 | L63: 24 | M63: 1
F64: 63 | G64: =EXP(MMULT(It0!G64:H64,B$2:B$3)) -> 1 | H64: 0.5 | I64: 0.25 | J64: -2 | K64: 0.5 | L64: 24.5 | M64: -1
F65: 64 | G65: =EXP(MMULT(It0!G65:H65,B$2:B$3)) -> 1 | H65: 0.5 | I65: 0.25 | J65: -2 | K65: 0.5 | L65: 24.5 | M65: -1
F66: 65 | G66: =EXP(MMULT(It0!G66:H66,B$2:B$3)) -> 1 | H66: 0.5 | I66: 0.25 | J66: 2 | K66: 0.5 | L66: 24.5 | M66: 1
F67: 66 | G67: =EXP(MMULT(It0!G67:H67,B$2:B$3)) -> 1 | H67: 0.5 | I67: =H67*(1-H67) -> 0.25 | J67: -2 | K67: 0.5 | L67: 25 | M67: -1
F68: 67 | G68: =EXP(MMULT(It0!G68:H68,B$2:B$3)) -> 1 | H68: =G68/(1+G68) -> 0.5 | I68: 0.25 | J68: 2 | K68: 0.5 | L68: 25 | M68: 1
F69: 68 | G69: =EXP(MMULT(It0!G69:H69,B$2:B$3)) -> 1 | H69: 0.5 | I69: 0.25 | J69: -2 | K69: 0.5 | L69: 25.5 | M69: -1
F70: 69 | G70: =EXP(MMULT(It0!G70:H70,B$2:B$3)) -> 1 | H70: 0.5 | I70: 0.25 | J70: -2 | K70: 0.5 | L70: 26 | M70: -1
F71: 70 | G71: =EXP(MMULT(It0!G71:H71,B$2:B$3)) -> 1 | H71: 0.5 | I71: 0.25 | J71: 2 | K71: 0.5 | L71: 26 | M71: 1
F72: 71 | G72: =EXP(MMULT(It0!G72:H72,B$2:B$3)) -> 1 | H72: 0.5 | I72: 0.25 | J72: 2 | K72: 0.5 | L72: 26.5 | M72: 1
F73: 72 | G73: =EXP(MMULT(It0!G73:H73,B$2:B$3)) -> 1 | H73: 0.5 | I73: 0.25 | J73: 2 | K73: 0.5 | L73: 26.5 | M73: 1
F74: 73 | G74: =EXP(MMULT(It0!G74:H74,B$2:B$3)) -> 1 | H74: 0.5 | I74: 0.25 | J74: 2 | K74: 0.5 | L74: 27 | M74: 1
F75: 74 | G75: =EXP(MMULT(It0!G75:H75,B$2:B$3)) -> 1 | H75: 0.5 | I75: 0.25 | J75: -2 | K75: 0.5 | L75: 27.5 | M75: -1
F76: 75 | G76: =EXP(MMULT(It0!G76:H76,B$2:B$3)) -> 1 | H76: 0.5 | I76: 0.25 | J76: 2 | K76: 0.5 | L76: 27.5 | M76: 1
F77: 76 | G77: =EXP(MMULT(It0!G77:H77,B$2:B$3)) -> 1 | H77: 0.5 | I77: 0.25 | J77: 2 | K77: 0.5 | L77: 27.5 | M77: 1
F78: 77 | G78: =EXP(MMULT(It0!G78:H78,B$2:B$3)) -> 1 | H78: 0.5 | I78: 0.25 | J78: 2 | K78: 0.5 | L78: 28 | M78: 1
F79: 78 | G79: =EXP(MMULT(It0!G79:H79,B$2:B$3)) -> 1 | H79: 0.5 | I79: 0.25 | J79: 2 | K79: 0.5 | L79: 28 | M79: 1
F80: 79 | G80: =EXP(MMULT(It0!G80:H80,B$2:B$3)) -> 1 | H80: 0.5 | I80: 0.25 | J80: 2 | K80: 0.5 | L80: 28 | M80: 1
F81: 80 | G81: =EXP(MMULT(It0!G81:H81,B$2:B$3)) -> 1 | H81: 0.5 | I81: 0.25 | J81: -2 | K81: 0.5 | L81: 28.5 | M81: -1
F82: 81 | G82: =EXP(MMULT(It0!G82:H82,B$2:B$3)) -> 1 | H82: 0.5 | I82: 0.25 | J82: -2 | K82: 0.5 | L82: 28.5 | M82: -1
F83: 82 | G83: =EXP(MMULT(It0!G83:H83,B$2:B$3)) -> 1 | H83: 0.5 | I83: 0.25 | J83: 2 | K83: 0.5 | L83: 28.5 | M83: 1
F84: 83 | G84: =EXP(MMULT(It0!G84:H84,B$2:B$3)) -> 1 | H84: 0.5 | I84: 0.25 | J84: 2 | K84: 0.5 | L84: 28.5 | M84: 1
F85: 84 | G85: =EXP(MMULT(It0!G85:H85,B$2:B$3)) -> 1 | H85: 0.5 | I85: 0.25 | J85: 2 | K85: 0.5 | L85: 28.5 | M85: 1
F86: 85 | G86: =EXP(MMULT(It0!G86:H86,B$2:B$3)) -> 1 | H86: 0.5 | I86: 0.25 | J86: 2 | K86: 0.5 | L86: 28.5 | M86: 1
F87: 86 | G87: =EXP(MMULT(It0!G87:H87,B$2:B$3)) -> 1 | H87: 0.5 | I87: 0.25 | J87: -2 | K87: 0.5 | L87: 29 | M87: -1
F88: 87 | G88: =EXP(MMULT(It0!G88:H88,B$2:B$3)) -> 1 | H88: 0.5 | I88: 0.25 | J88: 2 | K88: 0.5 | L88: 29 | M88: 1
F89: 88 | G89: =EXP(MMULT(It0!G89:H89,B$2:B$3)) -> 1 | H89: 0.5 | I89: 0.25 | J89: 2 | K89: 0.5 | L89: 29 | M89: 1
F90: 89 | G90: =EXP(MMULT(It0!G90:H90,B$2:B$3)) -> 1 | H90: 0.5 | I90: 0.25 | J90: 2 | K90: 0.5 | L90: 29.5 | M90: 1
F91: 90 | G91: =EXP(MMULT(It0!G91:H91,B$2:B$3)) -> 1 | H91: 0.5 | I91: 0.25 | J91: 2 | K91: 0.5 | L91: 29.5 | M91: 1
F92: 91 | G92: =EXP(MMULT(It0!G92:H92,B$2:B$3)) -> 1 | H92: 0.5 | I92: 0.25 | J92: -2 | K92: 0.5 | L92: 30 | M92: -1
F93: 92 | G93: =EXP(MMULT(It0!G93:H93,B$2:B$3)) -> 1 | H93: 0.5 | I93: 0.25 | J93: 2 | K93: 0.5 | L93: 30 | M93: 1
F94: 93 | G94: =EXP(MMULT(It0!G94:H94,B$2:B$3)) -> 1 | H94: 0.5 | I94: 0.25 | J94: 2 | K94: 0.5 | L94: 30.5 | M94: 1
F95: 94 | G95: =EXP(MMULT(It0!G95:H95,B$2:B$3)) -> 1 | H95: 0.5 | I95: 0.25 | J95: 2 | K95: 0.5 | L95: 31 | M95: 1
F96: 95 | G96: =EXP(MMULT(It0!G96:H96,B$2:B$3)) -> 1 | H96: 0.5 | I96: 0.25 | J96: 2 | K96: 0.5 | L96: 31 | M96: 1
F97: 96 | G97: =EXP(MMULT(It0!G97:H97,B$2:B$3)) -> 1 | H97: 0.5 | I97: 0.25 | J97: 2 | K97: 0.5 | L97: 31.5 | M97: 1
F98: 97 | G98: =EXP(MMULT(It0!G98:H98,B$2:B$3)) -> 1 | H98: 0.5 | I98: 0.25 | J98: -2 | K98: 0.5 | L98: 32 | M98: -1
F99: 98 | G99: =EXP(MMULT(It0!G99:H99,B$2:B$3)) -> 1 | H99: 0.5 | I99: 0.25 | J99: 2 | K99: 0.5 | L99: 32 | M99: 1
F100: 99 | G100: =EXP(MMULT(It0!G100:H100,B$2:B$3)) -> 1 | H100: 0.5 | I100: 0.25 | J100: 2 | K100: 0.5 | L100: 32.5 | M100: 1
F101: 100 | G101: =EXP(MMULT(It0!G101:H101,B$2:B$3)) -> 1 | H101: 0.5 | I101: 0.25 | J101: 2 | K101: 0.5 | L101: 34.5 | M101: 1

Sheet It2
A1: Beta iteration (i-1) | E1: Beta (iteration i) | G1: exp(X*beta) | H1: Calcolo del vettore p =probabilità stimate dato beta | I1: Calcolo diagonale principale matrice W | J1: Calcolo di z | K1: Calcolo di Xw | M1: Calcolo di zw
A2: beta0 | B2: ='It1'!E2:E3 -> -4.151841406 | E2: =Q4 -> -5.181105974 | F2: 1 | G2: =EXP(MMULT(It0!G2:H2,B$2:B$3)) -> 0.09008670095 | H2: =G2/(1+G2) -> 0.08264177599 | I2: =H2*(1-H2) -> 0.07581211285 | J2: =MMULT(X,B2:B3)+(y-H2:H101)/I2:I101 -> -3.497069429 | K2: =SQRT(I2:I101)*X -> 0.275339995 | L2: 5.5067999 | M2: =SQRT(I2:I101)*J2:J101 -> -0.9628830792 | P2: Calcolo del nuovo beta
A3: beta1 | B3: 0.0872429339 | E3: =P4 -> 0.1083254361 | F3: 2 | G3: =EXP(MMULT(It0!G3:H3,B$2:B$3)) -> 0.1170383141 | H3: =G3/(1+G3) -> 0.1047755593 | I3: =H3*(1-H3) -> 0.09379764147 | J3: -3.262292241 | K3: 0.3062640062 | L3: 7.044072142 | M3: -0.9991226909
F4: 3 | G4: =EXP(MMULT(It0!G4:H4,B$2:B$3)) -> 0.127707729 | H4: =G4/(1+G4) -> 0.1132454143 | I4: 0.1004208905 | J4: -3.185718722 | K4: 0.3168925535 | L4: 7.605421284 | M4: -1.009530541 | P4: =LINEST(M2:M101,K2:L101,0,1) -> 0.1083254361 | Q4: -5.181105974
A5: Iterazione | B5: 2 | F5: 4 | G5: =EXP(MMULT(It0!G5:H5,B$2:B$3)) -> 0.1393497863 | H5: 0.1223064137 | I5: 0.1073475548 | J5: -3.110117845 | K5: 0.327639367 | L5: 8.190984176 | M5: -1.018997042 | P5: 0.02040672198 | Q5: 0.9532602355
A6: Criterio di convergenza | F6: 5 | G6: =EXP(MMULT(It0!G6:H6,B$2:B$3)) -> 0.1393497863 | H6: 0.1223064137 | I6: 0.1073475548 | J6: 6.205418047 | K6: 0.327639367 | L6: 8.190984176 | M6: 2.033139241 | P6: 0.2316299612 | Q6: 0.9486180632
B7: =SUMSQ(E2:E3-B2:B3)/SUMSQ(E2:E3) -> 0.03946403278 | F7: 6 | G7: =EXP(MMULT(It0!G7:H7,B$2:B$3)) -> 0.1520531535 | H7: 0.1319844949 | I7: 0.114564588 | J7: -3.035578279 | K7: 0.3384739103 | L7: 8.800321669 | M7: -1.02746405 | P7: 14.77135693 | Q7: 98
F8: 7 | G8: =EXP(MMULT(It0!G8:H8,B$2:B$3)) -> 0.1520531535 | H8: 0.1319844949 | I8: 0.114564588 | J8: -3.035578279 | K8: 0.3384739103 | L8: 8.800321669 | M8: -1.02746405 | P8: 26.58478597 | Q8: 88.18787052
F9: 8 | G9: =EXP(MMULT(It0!G9:H9,B$2:B$3)) -> 0.1810396416 | H9: 0.15328837 | I9: 0.1297910456 | J9: -2.890078899 | K9: 0.3602652435 | L9: 10.08742682 | M9: -1.041194978
F10: 9 | G10: =EXP(MMULT(It0!G10:H10,B$2:B$3)) -> 0.1810396416 | H10: 0.15328837 | I10: 0.1297910456 | J10: -2.890078899 | K10: 0.3602652435 | L10: 10.08742682 | M10: -1.041194978 | P10: Regressione di zw su Xw
F11: 10 | G11: =EXP(MMULT(It0!G11:H11,B$2:B$3)) -> 0.1975435281 | H11: 0.1649572842 | I11: 0.1377463786 | J11: -2.819339851 | K11: 0.3711419925 | L11: 10.76311778 | M11: -1.04637541
F12: 11 | G12: =EXP(MMULT(It0!G12:H12,B$2:B$3)) -> 0.2155519374 | H12: 0.1773284471 | I12: 0.145883069 | J12: -2.750105327 | K12: 0.3819464216 | L12: 11.45839265 | M12: -1.050392889
F13: 12 | G13: =EXP(MMULT(It0!G13:H13,B$2:B$3)) -> 0.2155519374 | H13: 0.1773284471 | I13: 0.145883069 | J13: -2.750105327 | K13: 0.3819464216 | L13: 11.45839265 | M13: -1.050392889
F14: 13 | G14: =EXP(MMULT(It0!G14:H14,B$2:B$3)) -> 0.2155519374 | H14: 0.1773284471 | I14: 0.145883069 | J14: -2.750105327 | K14: 0.3819464216 | L14: 11.45839265 | M14: -1.050392889
F15: 14 | G15: =EXP(MMULT(It0!G15:H15,B$2:B$3)) -> 0.2155519374 | H15: 0.1773284471 | I15: 0.145883069 | J15: -2.750105327 | K15: 0.3819464216 | L15: 11.45839265 | M15: -1.050392889
F16: 15 | G16: =EXP(MMULT(It0!G16:H16,B$2:B$3)) -> 0.2155519374 | H16: 0.1773284471 | I16: 0.145883069 | J16: -2.750105327 | K16: 0.3819464216 | L16: 11.45839265 | M16: -1.050392889
F17: 16 | G17: =EXP(MMULT(It0!G17:H17,B$2:B$3)) -> 0.2155519374 | H17: 0.1773284471 | I17: 0.145883069 | J17: 4.104699738 | K17: 0.3819464216 | L17: 11.45839265 | M17: 1.567775377
F18: 17 | G18: =EXP(MMULT(It0!G18:H18,B$2:B$3)) -> 0.2566434474 | H18: 0.2042293285 | I18: 0.1625197099 | J18: -2.616710969 | K18: 0.4031373337 | L18: 12.90039468 | M18: -1.054893883
F19: 18 | G19: =EXP(MMULT(It0!G19:H19,B$2:B$3)) -> 0.2566434474 | H19: 0.2042293285 | I19: 0.1625197099 | J19: -2.616710969 | K19: 0.4031373337 | L19: 12.90039468 | M19: -1.054893883
F20: 19 | G20: =EXP(MMULT(It0!G20:H20,B$2:B$3)) -> 0.2800395074 | H20: 0.2187741127 | I20: 0.1709120003 | J20: -2.552864095 | K20: 0.4134150461 | L20: 13.64269652 | M20: -1.055392427
F21: 20 | G21: =EXP(MMULT(It0!G21:H21,B$2:B$3)) -> 0.2800395074 | H21: 0.2187741127 | I21: 0.1709120003 | J21: -2.552864095 | K21: 0.4134150461 | L21: 13.64269652 | M21: -1.055392427
F22: 21 | G22: =EXP(MMULT(It0!G22:H22,B$2:B$3)) -> 0.3055683928 | H22: 0.2340500846 | I22: 0.1792706425 | J22: -2.491150047 | K22: 0.4234036401 | L22: 14.39572377 | M22: -1.054761998
F23: 22 | G23: =EXP(MMULT(It0!G23:H23,B$2:B$3)) -> 0.3055683928 | H23: 0.2340500846 | I23: 0.1792706425 | J23: -2.491150047 | K23: 0.4234036401 | L23: 14.39572377 | M23: -1.054761998
F24: 23 | G24: =EXP(MMULT(It0!G24:H24,B$2:B$3)) -> 0.3055683928 | H24: 0.2340500846 | I24: 0.1792706425 | J24: 3.087008129 | K24: 0.4234036401 | L24: 14.39572377 | M24: 1.307050479
F25: 24 | G25: =EXP(MMULT(It0!G25:H25,B$2:B$3)) -> 0.3055683928 | H25: 0.2340500846 | I25: 0.1792706425 | J25: -2.491150047 | K25: 0.4234036401 | L25: 14.39572377 | M25: -1.054761998
F26: 25 | G26: =EXP(MMULT(It0!G26:H26,B$2:B$3)) -> 0.3055683928 | H26: 0.2340500846 | I26: 0.1792706425 | J26: -2.491150047 | K26: 0.4234036401 | L26: 14.39572377 | M26: -1.054761998
F27: 26 | G27: =EXP(MMULT(It0!G27:H27,B$2:B$3)) -> 0.3334245354 | H27: 0.2500512976 | I27: 0.1875256462 | J27: -2.431763255 | K27: 0.4330423145 | L27: 15.15648101 | M27: -1.053056389
F28: 27 | G28: =EXP(MMULT(It0!G28:H28,B$2:B$3)) -> 0.3334245354 | H28: 0.2500512976 | I28: 0.1875256462 | J28: -2.431763255 | K28: 0.4330423145 | L28: 15.15648101 | M28: -1.053056389
F29: 28 | G29: =EXP(MMULT(It0!G29:H29,B$2:B$3)) -> 0.3638200921 | H29: 0.2667654584 | I29: 0.1956016486 | J29: -2.374915878 | K29: 0.4422687516 | L29: 15.92167506 | M29: -1.050351081
F30: 29 | G30: =EXP(MMULT(It0!G30:H30,B$2:B$3)) -> 0.3638200921 | H30: 0.2667654584 | I30: 0.1956016486 | J30: 2.737515469 | K30: 0.4422687516 | L30: 15.92167506 | M30: 1.210717549
F31: 30 | G31: =EXP(MMULT(It0!G31:H31,B$2:B$3)) -> 0.3638200921 | H31: 0.2667654584 | I31: 0.1956016486 | J31: -2.374915878 | K31: 0.4422687516 | L31: 15.92167506 | M31: -1.050351081
F32: 31 | G32: =EXP(MMULT(It0!G32:H32,B$2:B$3)) -> 0.3969865602 | H32: 0.2841735 | I32: 0.2034189219 | J32: -2.320839412 | K32: 0.4510198686 | L32: 16.68773514 | M32: -1.046744687
F33: 32 | G33: =EXP(MMULT(It0!G33:H33,B$2:B$3)) -> 0.3969865602 | H33: 0.2841735 | I33: 0.2034189219 | J33: 2.595124111 | K33: 0.4510198686 | L33: 16.68773514 | M33: 1.170452536
F34: 33 | G34: =EXP(MMULT(It0!G34:H34,B$2:B$3)) -> 0.3969865602 | H34: 0.2841735 | I34: 0.2034189219 | J34: -2.320839412 | K34: 0.4510198686 | L34: 16.68773514 | M34: -1.046744687
F35: 34 | G35: =EXP(MMULT(It0!G35:H35,B$2:B$3)) -> 0.4331765409 | H35: 0.3022492544 | I35: 0.2108946426 | J35: -2.269786459 | K35: 0.4592326672 | L35: 17.45084135 | M35: -1.04236009
F36: 35 | G36: =EXP(MMULT(It0!G36:H36,B$2:B$3)) -> 0.4331765409 | H36: 0.3022492544 | I36: 0.2108946426 | J36: -2.269786459 | K36: 0.4592326672 | L36: 17.45084135 | M36: -1.04236009
F37: 36 | G37: =EXP(MMULT(It0!G37:H37,B$2:B$3)) -> 0.4726656628 | H37: 0.3209592474 | I37: 0.2179444089 | J37: -2.222032647 | K37: 0.4668451659 | L37: 18.20696147 | M37: -1.0373452
F38: 37 | G38: =EXP(MMULT(It0!G38:H38,B$2:B$3)) -> 0.4726656628 | H38: 0.3209592474 | I38: 0.2179444089 | J38: 2.366293362 | K38: 0.4668451659 | L38: 18.20696147 | M38: 1.104692617
F39: 38 | G39: =EXP(MMULT(It0!G39:H39,B$2:B$3)) -> 0.5157546813 | H39: 0.3402626346 | I39: 0.2244839741 | J39: -2.177878732 | K39: 0.4737973977 | L39: 18.95189591 | M39: -1.031873276
F40: 39 | G40: =EXP(MMULT(It0!G40:H40,B$2:B$3)) -> 0.5157546813 | H40: 0.3402626346 | I40: 0.2244839741 | J40: 2.276782248 | K40: 0.4737973977 | L40: 18.95189591 | M40: 1.078733504
F41: 40 | G41: =EXP(MMULT(It0!G41:H41,B$2:B$3)) -> 0.5627717691 | H41: 0.3601112973 | I41: 0.2304311508 | J41: -2.137652886 | K41: 0.4800324477 | L41: 19.68133036 | M41: -1.026142747
F42: 41 | G42: =EXP(MMULT(It0!G42:H42,B$2:B$3)) -> 0.5627717691 | H42: 0.3601112973 | I42: 0.2304311508 | J42: -2.137652886 | K42: 0.4800324477 | L42: 19.68133036 | M42: -1.026142747
F43: 42 | G43: =EXP(MMULT(It0!G43:H43,B$2:B$3)) -> 0.6140750158 | H43: 0.3804501091 | I43: 0.2357078236 | J43: -2.101713199 | K43: 0.4854975011 | L43: 20.39089505 | M43: -1.020376506
F44: 43 | G44: =EXP(MMULT(It0!G44:H44,B$2:B$3)) -> 0.6140750158 | H44: 0.3804501091 | I44: 0.2357078236 | J44: -2.101713199 | K44: 0.4854975011 | L44: 20.39089505 | M44: -1.020376506
F45: 44 | G45: =EXP(MMULT(It0!G45:H45,B$2:B$3)) -> 0.6140750158 | H45: 0.3804501091 | I45: 0.2357078236 | J45: -2.101713199 | K45: 0.4854975011 | L45: 20.39089505 | M45: -1.020376506
F46: 45 | G46: =EXP(MMULT(It0!G46:H46,B$2:B$3)) -> 0.6140750158 | H46: 0.3804501091 | I46: 0.2357078236 | J46: 2.140827354 | K46: 0.4854975011 | L46: 20.39089505 | M46: 1.03936633
F47: 46 | G47: =EXP(MMULT(It0!G47:H47,B$2:B$3)) -> 0.6700551552 | H47: 0.4012173808 | I47: 0.2402419941 | J47: -2.070450404 | K47: 0.4901448706 | L47: 21.07622943 | M47: -1.014820645
F48: 47 | G48: =EXP(MMULT(It0!G48:H48,B$2:B$3)) -> 0.6700551552 | H48: 0.4012173808 | I48: 0.2402419941 | J48: -2.070450404 | K48: 0.4901448706 | L48: 21.07622943 | M48: -1.014820645
F49: 48 | G49: =EXP(MMULT(It0!G49:H49,B$2:B$3)) -> 0.6700551552 | H49: 0.4012173808 | I49: 0.2402419941 | J49: 2.092019207 | K49: 0.4901448706 | L49: 21.07622943 | M49: 1.025392484
F50: 49 | G50: =EXP(MMULT(It0!G50:H50,B$2:B$3)) -> 0.7311385408 | H50: 0.4223454816 | I50: 0.2439697758 | J50: -2.044290856 | K50: 0.4939329669 | L50: 21.73305054 | M50: -1.009742648
F51: 50 | G51: =EXP(MMULT(It0!G51:H51,B$2:B$3)) -> 0.7311385408 | H51: 0.4223454816 | I51: 0.2439697758 | J51: -2.044290856 | K51: 0.4939329669 | L51: 21.73305054 | M51: -1.009742648
F52: 51 | G52: =EXP(MMULT(It0!G52:H52,B$2:B$3)) -> 0.7311385408 | H52: 0.4223454816 | I52: 0.2439697758 | J52: 2.054577526 | K52: 0.4939329669 | L52: 21.73305054 | M52: 1.014823573
F53: 52 | G53: =EXP(MMULT(It0!G53:H53,B$2:B$3)) -> 0.7311385408 | H53: 0.4223454816 | I53: 0.2439697758 | J53: 2.054577526 | K53: 0.4939329669 | L53: 21.73305054 | M53: 1.014823573
F54: 53 | G54: =EXP(MMULT(It0!G54:H54,B$2:B$3)) -> 0.7977903934 | H54: 0.4437616289 | I54: 0.2468372456 | J54: -2.023699774 | K54: 0.4968271788 | L54: 22.35722305 | M54: -1.00542905
F55: 54 | G55: =EXP(MMULT(It0!G55:H55,B$2:B$3)) -> 0.7977903934 | H55: 0.4437616289 | I55: 0.2468372456 | J55: 2.027552692 | K55: 0.4968271788 | L55: 22.35722305 | M55: 1.007343284
F56: 55 | G56: =EXP(MMULT(It0!G56:H56,B$2:B$3)) -> 0.870518344 | H56: 0.4653888302 | I56: 0.2488020669 | J56: -2.009184791 | K56: 0.4988006284 | L56: 22.94482891 | M56: -1.002182636
F57: 56 | G57: =EXP(MMULT(It0!G57:H57,B$2:B$3)) -> 0.870518344 | H57: 0.4653888302 | I57: 0.2488020669 | J57: 2.010074423 | K57: 0.4988006284 | L57: 22.94482891 | M57: 1.002626385
F58: 57 | G58: =EXP(MMULT(It0!G58:H58,B$2:B$3)) -> 0.9498763002 | H58: 0.4871469539 | I58: 0.2498347992 | J58: -2.001299813 | K58: 0.4998347719 | L58: 23.49223428 | M58: -1.000319236
F59: 58 | G59: =EXP(MMULT(It0!G59:H59,B$2:B$3)) -> 0.9498763002 | H59: 0.4871469539 | I59: 0.2498347992 | J59: -2.001299813 | K59: 0.4998347719 | L59: 23.49223428 | M59: -1.000319236
F60: 59 | G60: =EXP(MMULT(It0!G60:H60,B$2:B$3)) -> 0.9498763002 | H60: 0.4871469539 | I60: 0.2498347992 | J60: 2.001345147 | K60: 0.4998347719 | L60: 23.49223428 | M60: 1.000341895
F61: 60 | G61: =EXP(MMULT(It0!G61:H61,B$2:B$3)) -> 1.036468665 | H61: 0.5089538979 | I61: 0.2499198277 | J61: -2.000649244 | K61: 0.4999198213 | L61: 23.99615142 | M61: -1.000164213
F62: 61 | G62: =EXP(MMULT(It0!G62:H62,B$2:B$3)) -> 1.036468665 | H62: 0.5089538979 | I62: 0.2499198277 | J62: 2.000633924 | K62: 0.4999198213 | L62: 23.99615142 | M62: 1.000156554
F63: 62 | G63: =EXP(MMULT(It0!G63:H63,B$2:B$3)) -> 1.036468665 | H63: 0.5089538979 | I63: 0.2499198277 | J63: 2.000633924 | K63: 0.4999198213 | L63: 23.99615142 | M63: 1.000156554
F64: 63 | G64: =EXP(MMULT(It0!G64:H64,B$2:B$3)) -> 1.130954939 | H64: 0.5307268203 | I64: 0.2490558625 | J64: -2.007892584 | K64: 0.4990549694 | L64: 24.4536935 | M64: -1.002048772
F65: 64 | G65: =EXP(MMULT(It0!G65:H65,B$2:B$3)) -> 1.130954939 | H65: 0.5307268203 | I65: 0.2490558625 | J65: -2.007892584 | K65: 0.4990549694 | L65: 24.4536935 | M65: -1.002048772
F66: 65 | G66: =EXP(MMULT(It0!G66:H66,B$2:B$3)) -> 1.130954939 | H66: 0.5307268203 | I66: 0.2490558625 | J66: 2.007270881 | K66: 0.4990549694 | L66: 24.4536935 | M66: 1.001738508
F67: 66 | G67: =EXP(MMULT(It0!G67:H67,B$2:B$3)) -> 1.234054745 | H67: 0.5523833952 | I67: =H67*(1-H67) -> 0.2472559799 | J67: -2.023749457 | K67: 0.4972484087 | L67: 24.86242043 | M67: -1.006306197
F68: 67 | G68: =EXP(MMULT(It0!G68:H68,B$2:B$3)) -> 1.234054745 | H68: =G68/(1+G68) -> 0.5523833952 | I68: 0.2472559799 | J68: 2.02064211 | K68: 0.4972484087 | L68: 24.86242043 | M68: 1.004761074
F69: 68 | G69: =EXP(MMULT(It0!G69:H69,B$2:B$3)) -> 1.346553308 | H69: 0.5738430503 | I69: 0.2445472039 | J69: -2.049005085 | K69: 0.4945171422 | L69: 25.22037425 | M69: -1.013268139
F70: 69 | G70: =EXP(MMULT(It0!G70:H70,B$2:B$3)) -> 1.469307434 | H70: 0.5950281499 | I70: 0.2409696507 | J70: -2.084516277 | K70: 0.4908865966 | L70: 25.52610302 | M70: -1.023261101
F71: 70 | G71: =EXP(MMULT(It0!G71:H71,B$2:B$3)) -> 1.469307434 | H71: 0.5950281499 | I71: 0.2409696507 | J71: 2.065383915 | K71: 0.4908865966 | L71: 25.52610302 | M71: 1.013869281
F72: 71 | G72: =EXP(MMULT(It0!G72:H72,B$2:B$3)) -> 1.603252038 | H72: 0.6158650851 | I72: 0.236575282 | J72: 2.09576634 | K72: 0.4863900513 | L72: 25.77867272 | M72: 1.019359898
F73: 72 | G73: =EXP(MMULT(It0!G73:H73,B$2:B$3)) -> 1.603252038 | H73: 0.6158650851 | I73: 0.236575282 | J73: 2.09576634 | K73: 0.4863900513 | L73: 25.77867272 | M73: 1.019359898
F74: 73 | G74: =EXP(MMULT(It0!G74:H74,B$2:B$3)) -> 1.749407264 | H74: 0.6362852411 | I74: 0.2314263331 | J74: 2.130899208 | K74: 0.481067909 | L74: 25.97766709 | M74: 1.025107226
F75: 74 | G75: =EXP(MMULT(It0!G75:H75,B$2:B$3)) -> 1.908886252 | H75: 0.6562258152 | I75: 0.2255934947 | J75: -2.262366294 | K75: 0.4749668353 | L75: 26.12317594 | M75: -1.074548959
F76: 75 | G76: =EXP(MMULT(It0!G76:H76,B$2:B$3)) -> 1.908886252 | H76: 0.6562258152 | I76: 0.2255934947 | J76: 2.170385641 | K76: 0.4749668353 | L76: 26.12317594 | M76: 1.030861199
F77: 76 | G77: =EXP(MMULT(It0!G77:H77,B$2:B$3)) -> 1.908886252 | H77: 0.6562258152 | I77: 0.2255934947 | J77: 2.170385641 | K77: 0.4749668353 | L77: 26.12317594 | M77: 1.030861199
F78: 77 | G78: =EXP(MMULT(It0!G78:H78,B$2:B$3)) -> 2.082903621 | H78: 0.6756304695 | I78: 0.2191539382 | J78: 2.213861918 | K78: 0.4681388022 | L78: 26.21577293 | M78: 1.036394667
F79: 78 | G79: =EXP(MMULT(It0!G79:H79,B$2:B$3)) -> 2.082903621 | H79: 0.6756304695 | I79: 0.2191539382 | J79: 2.213861918 | K79: 0.4681388022 | L79: 26.21577293 | M79: 1.036394667
F80: 79 | G80: =EXP(MMULT(It0!G80:H80,B$2:B$3)) -> 2.082903621 | H80: 0.6756304695 | I80: 0.2191539382 | J80: 2.213861918 | K80: 0.4681388022 | L80: 26.21577293 | M80: 1.036394667
F81: 80 | G81: =EXP(MMULT(It0!G81:H81,B$2:B$3)) -> 2.272784714 | H81: 0.6944498073 | I81: 0.2121892724 | J81: -2.451778888 | K81: 0.4606400682 | L81: 26.25648389 | M81: -1.129387594
F82: 81 | G82: =EXP(MMULT(It0!G82:H82,B$2:B$3)) -> 2.272784714 | H82: 0.6944498073 | I82: 0.2121892724 | J82: -2.451778888 | K82: 0.4606400682 | L82: 26.25648389 | M82: -1.129387594
F83: 82 | G83: =EXP(MMULT(It0!G83:H83,B$2:B$3)) -> 2.272784714 | H83: 0.6944498073 | I83: 0.2121892724 | J83: 2.260994706 | K83: 0.4606400682 | L83: 26.25648389 | M83: 1.041504755
F84: 83 | G84: =EXP(MMULT(It0!G84:H84,B$2:B$3)) -> 2.272784714 | H84: 0.6944498073 | I84: 0.2121892724 | J84: 2.260994706 | K84: 0.4606400682 | L84: 26.25648389 | M84: 1.041504755
F85: 84 | G85: =EXP(MMULT(It0!G85:H85,B$2:B$3)) -> 2.272784714 | H85: 0.6944498073 | I85: 0.2121892724 | J85: 2.260994706 | K85: 0.4606400682 | L85: 26.25648389 | M85: 1.041504755
F86: 85 | G86: =EXP(MMULT(It0!G86:H86,B$2:B$3)) -> 2.272784714 | H86: 0.6944498073 | I86: 0.2121892724 | J86: 2.260994706 | K86: 0.4606400682 | L86: 26.25648389 | M86: 1.041504755
F87: 86 | G87: =EXP(MMULT(It0!G87:H87,B$2:B$3)) -> 2.479975695 | H87: 0.7126416712 | I87: 0.2047835197 | J87: -2.571726935 | K87: 0.4525301312 | L87: 26.24674761 | M87: -1.163783927
F88: 87 | G88: =EXP(MMULT(It0!G88:H88,B$2:B$3)) -> 2.479975695 | H88: 0.7126416712 | I88: 0.2047835197 | J88: 2.311478518 | K88: 0.4525301312 | L88: 26.24674761 | M88: 1.046013677
F89: 88 | G89: =EXP(MMULT(It0!G89:H89,B$2:B$3)) -> 2.479975695 | H89: 0.7126416712 | I89: 0.2047835197 | J89: 2.311478518 | K89: 0.4525301312 | L89: 26.24674761 | M89: 1.046013677
F90: 89 | G90: =EXP(MMULT(It0!G90:H90,B$2:B$3)) -> 2.706054564 | H90: 0.730171269 | I90: 0.1970211869 | J90: 2.365033392 | K90: 0.4438706872 | L90: 26.18837054 | M90: 1.049768997
F91: 90 | G91: =EXP(MMULT(It0!G91:H91,B$2:B$3)) -> 2.706054564 | H91: 0.730171269 | I91: 0.1970211869 | J91: 2.365033392 | K91: 0.4438706872 | L91: 26.18837054 | M91: 1.049768997
F92: 91 | G92: =EXP(MMULT(It0!G92:H92,B$2:B$3)) -> 2.952743173 | H92: 0.7470111373 | I92: 0.1889854981 | J92: -2.870008546 | K92: 0.4347246232 | L92: 26.08347739 | M92: -1.247663384
F93: 92 | G93: =EXP(MMULT(It0!G93:H93,B$2:B$3)) -> 2.952743173 | H93: 0.7470111373 | I93: 0.1889854981 | J93: 2.421402755 | K93: 0.4347246232 | L93: 26.08347739 | M93: 1.0526434
F94: 93 | G94: =EXP(MMULT(It0!G94:H94,B$2:B$3)) -> 3.221920342 | H94: 0.7631409598 | I94: 0.1807568353 | J94: 2.480351467 | K94: 0.425155072 | L94: 25.93445939 | M94: 1.054534007
F95: 94 | G95: =EXP(MMULT(It0!G95:H95,B$2:B$3)) -> 3.515636167 | H95: 0.7785472605 | I95: 0.1724114237 | J95: 2.541664036 | K95: 0.4152245461 | L95: 25.74392186 | M95: 1.055361296
F96: 95 | G96: =EXP(MMULT(It0!G96:H96,B$2:B$3)) -> 3.515636167 | H96: 0.7785472605 | I96: 0.1724114237 | J96: 2.541664036 | K96: 0.4152245461 | L96: 25.74392186 | M96: 1.055361296
F97: 96 | G97: =EXP(MMULT(It0!G97:H97,B$2:B$3)) -> 3.836127634 | H97: 0.7932229925 | I97: 0.1640202767 | J97: 2.605142973 | K97: 0.4049941687 | L97: 25.51463263 | M97: 1.055067712
F98: 97 | G98: =EXP(MMULT(It0!G98:H98,B$2:B$3)) -> 4.185835657 | H98: 0.8071670477 | I98: 0.1556484048 | J98: -3.754129294 | K98: 0.3945230092 | L98: 25.24947259 | M98: -1.481090386
F99: 98 | G99: =EXP(MMULT(It0!G99:H99,B$2:B$3)) -> 4.185835657 | H99: 0.8071670477 | I99: 0.1556484048 | J99: 2.670607286 | K99: 0.3945230092 | L99: 25.24947259 | M99: 1.053616023
F100: 99 | G100: =EXP(MMULT(It0!G100:H100,B$2:B$3)) -> 4.567423667 | H100: 0.8203837071 | I100: 0.1473542802 | J100: 2.737891106 | K100: 0.3838675295 | L100: 24.95138942 | M100: 1.050987495
F101: 100 | G101: =EXP(MMULT(It0!G101:H101,B$2:B$3)) -> 6.474821454 | H101: 0.8662175403 | I101: 0.1158847132 | J101: 3.022365446 | K101: 0.3404184384 | L101: 23.48887225 | M101: 1.028868925

Sheet It3
A1: Beta iteration (i-1) | E1: Beta (iteration i) | G1: exp(X*beta) | H1: Calcolo del vettore p =probabilità stimate dato beta | I1: Calcolo diagonale principale matrice W | J1: Calcolo di z | K1: Calcolo di Xw | M1: Calcolo di zw
A2: beta0 | B2: ='It2'!E2:E3 -> -5.181105974 | E2: =Q4 -> -5.307673 | F2: 1 | G2: =EXP(MMULT(It0!G2:H2,B$2:B$3)) -> 0.04906559252 | H2: =G2/(1+G2) -> 0.04677075759 | I2: =H2*(1-H2) -> 0.04458325382 | J2: =MMULT(X,B2:B3)+(y-H2:H101)/I2:I101 -> -4.063662846 | K2: =SQRT(I2:I101)*X -> 0.2111474694 | L2: 4.222949387 | M2: =SQRT(I2:I101)*J2:J101 -> -0.8580321262 | P2: Calcolo del nuovo beta
A3: beta1 | B3: 0.1083254361 | E3: =P4 -> 0.1108854112 | F3: 2 | G3: =EXP(MMULT(It0!G3:H3,B$2:B$3)) -> 0.06790667486 | H3: =G3/(1+G3) -> 0.06358858546 | I3: =H3*(1-H3) -> 0.05954507726 | J3: -3.75752762 | K3: 0.2440186002 | L3: 5.612427805 | M3: -0.9169066301
F4: 3 | G4: =EXP(MMULT(It0!G4:H4,B$2:B$3)) -> 0.07567590169 | H4: =G4/(1+G4) -> 0.07035195412 | I4: 0.06540255667 | J4: -3.656971411 | K4: 0.2557392357 | L4: 6.137741657 | M4: -0.9352310735 | P4: =LINEST(M2:M101,K2:L101,0,1) -> 0.1108854112 | Q4: -5.307673
A5: Iterazione | B5: 3 | F5: 4 | G5: =EXP(MMULT(It0!G5:H5,B$2:B$3)) -> 0.08433400852 | H5: 0.07777493637 | I5: 0.07172599564 | J5: -3.557304081 | K5: 0.2678170936 | L5: 6.695427341 | M5: -0.9527068402 | P5: 0.02400596282 | Q5: 1.12994728
A6: Criterio di convergenza | F6: 5 | G6: =EXP(MMULT(It0!G6:H6,B$2:B$3)) -> 0.08433400852 | H6: 0.07777493637 | I6: 0.07172599564 | J6: 10.3846425 | K6: 0.2678170936 | L6: 6.695427341 | M6: 2.781184774 | P6: 0.183879698 | Q6: 1.010600825
B7: =SUMSQ(E2:E3-B2:B3)/SUMSQ(E2:E3) -> 0.0005686184574 | F7: 6 | G7: =EXP(MMULT(It0!G7:H7,B$2:B$3)) -> 0.09398269243 | H7: 0.08590875622 | I7: 0.07852844182 | J7: -3.458627329 | K7: 0.2802292665 | L7: 7.28596093 | M7: -0.9692085997 | P7: 11.04016795 | Q7: 98
F8: 7 | G8: =EXP(MMULT(It0!G8:H8,B$2:B$3)) -> 0.09398269243 | H8: 0.08590875622 | I8: 0.07852844182 | J8: -3.458627329 | K8: 0.2802292665 | L8: 7.28596093 | M8: -0.9692085997 | P8: 22.55095678 | Q8: 100.0887747
F9: 8 | G9: =EXP(MMULT(It0!G9:H9,B$2:B$3)) -> 0.116718087 | H9: 0.1045188471 | I9: 0.0935946577 | J9: -3.264711852 | K9: 0.3059324398 | L9: 8.566108314 | M9: -0.9987812619
F10: 9 | G10: =EXP(MMULT(It0!G10:H10,B$2:B$3)) -> 0.116718087 | H10: 0.1045188471 | I10: 0.0935946577 | J10: -3.264711852 | K10: 0.3059324398 | L10: 8.566108314 | M10: -0.9987812619 | P10: Regressione di zw su Xw
F11: 10 | G11: =EXP(MMULT(It0!G11:H11,B$2:B$3)) -> 0.1300718448 | H11: 0.1151005093 | I11: 0.101852382 | J11: -3.169740173 | K11: 0.3191431999 | L11: 9.255152796 | M11: -1.011601022
F12: 11 | G12: =EXP(MMULT(It0!G12:H12,B$2:B$3)) -> 0.1449534109 | H12: 0.1266020167 | I12: 0.1105739461 | J12: -3.076296303 | K12: 0.3325266096 | L12: 9.975798288 | M12: -1.02295038
F13: 12 | G13: =EXP(MMULT(It0!G13:H13,B$2:B$3)) -> 0.1449534109 | H13: 0.1266020167 | I13: 0.1105739461 | J13: -3.076296303 | K13: 0.3325266096 | L13: 9.975798288 | M13: -1.02295038
F14: 13 | G14: =EXP(MMULT(It0!G14:H14,B$2:B$3)) -> 0.1449534109 | H14: 0.1266020167 | I14: 0.1105739461 | J14: -3.076296303 | K14: 0.3325266096 | L14: 9.975798288 | M14: -1.02295038
F15: 14 | G15: =EXP(MMULT(It0!G15:H15,B$2:B$3)) -> 0.1449534109 | H15: 0.1266020167 | I15: 0.1105739461 | J15: -3.076296303 | K15: 0.3325266096 | L15: 9.975798288 | M15: -1.02295038
F16: 15 | G16: =EXP(MMULT(It0!G16:H16,B$2:B$3)) -> 0.1449534109 | H16: 0.1266020167 | I16: 0.1105739461 | J16: -3.076296303 | K16: 0.3325266096 | L16: 9.975798288 | M16: -1.02295038
F17: 16 | G17: =EXP(MMULT(It0!G17:H17,B$2:B$3)) -> 0.1449534109 | H17: 0.1266020167 | I17: 0.1105739461 | J17: 5.967425436 | K17: 0.3325266096 | L17: 9.975798288 | M17: 1.984327748
F18: 17 | G18: =EXP(MMULT(It0!G18:H18,B$2:B$3)) -> 0.1800191544 | H18: 0.1525561291 | I18: 0.1292827565 | J18: -2.894711175 | K18: 0.3595591141 | L18: 11.50589165 | M18: -1.040819786
F19: 18 | G19: =EXP(MMULT(It0!G19:H19,B$2:B$3)) -> 0.1800191544 | H19: 0.1525561291 | I19: 0.1292827565 | J19: -2.894711175 | K19: 0.3595591141 | L19: 11.50589165 | M19: -1.040819786
F20: 19 | G20: =EXP(MMULT(It0!G20:H20,B$2:B$3)) -> 0.2006152099 | H20: 0.1670936768 | I20: 0.13917338 | J20: -2.806981794 | K20: 0.3730594859 | L20: 12.31096303 | M20: -1.047171185
F21: 20 | G21: =EXP(MMULT(It0!G21:H21,B$2:B$3)) -> 0.2006152099 | H21: 0.1670936768 | I21: 0.13917338 | J21: -2.806981794 | K21: 0.3730594859 | L21: 12.31096303 | M21: -1.047171185
F22: 21 | G22: =EXP(MMULT(It0!G22:H22,B$2:B$3)) -> 0.2235676674 | H22: 0.1827178614 | I22: 0.1493320445 | J22: -2.721608816 | K22: 0.3864350456 | L22: 13.13879155 | M22: -1.051725027
F23: 22 | G23: =EXP(MMULT(It0!G23:H23,B$2:B$3)) -> 0.2235676674 | H23: 0.1827178614 | I23: 0.1493320445 | J23: -2.721608816 | K23: 0.3864350456 | L23: 13.13879155 | M23: -1.051725027
F24: 23 | G24: =EXP(MMULT(It0!G24:H24,B$2:B$3)) -> 0.2235676674 | H24: 0.1827178614 | I24: 0.1493320445 | J24: 3.97487755 | K24: 0.3864350456 | L24: 13.13879155 | M24: 1.536031988
F25: 24 | G25: =EXP(MMULT(It0!G25:H25,B$2:B$3)) -> 0.2235676674 | H25: 0.1827178614 | I25: 0.1493320445 | J25: -2.721608816 | K25: 0.3864350456 | L25: 13.13879155 | M25: -1.051725027
F26: 25 | G26: =EXP(MMULT(It0!G26:H26,B$2:B$3)) -> 0.2235676674 | H26: 0.1827178614 | I26: 0.1493320445 | J26: -2.721608816 | K26: 0.3864350456 | L26: 13.13879155 | M26: -1.051725027
F27: 26 | G27: =EXP(MMULT(It0!G27:H27,B$2:B$3)) -> 0.2491461238 | H27: 0.1994531457 | I27: 0.1596715883 | J27: -2.638861836 | K27: 0.3995892746 | L27: 13.98562461 | M27: -1.054460887
F28: 27 | G28: =EXP(MMULT(It0!G28:H28,B$2:B$3)) -> 0.2491461238 | H28: 0.1994531457 | I28: 0.1596715883 | J28: -2.638861836 | K28: 0.3995892746 | L28: 13.98562461 | M28: -1.054460887
F29: 28 | G29: =EXP(MMULT(It0!G29:H29,B$2:B$3)) -> 0.2776510204 | H29: 0.2173136608 | I29: 0.1700884336 | J29: -2.559041297 | K29: 0.4124177901 | L29: 14.84704044 | M29: -1.055394156
F30: 29 | G30: =EXP(MMULT(It0!G30:H30,B$2:B$3)) -> 0.2776510204 | H30: 0.2173136608 | I30: 0.1700884336 | J30: 3.320253249 | K30: 0.4124177901 | L30: 14.84704044 | M30: 1.369331508
F31: 30 | G31: =EXP(MMULT(It0!G31:H31,B$2:B$3)) -> 0.2776510204 | H31: 0.2173136608 | I31: 0.1700884336 | J31: -2.559041297 | K31: 0.4124177901 | L31: 14.84704044 | M31: -1.055394156
F32: 31 | G32: =EXP(MMULT(It0!G32:H32,B$2:B$3)) -> 0.3094171724 | H32: 0.2363014469 | I32: 0.1804630731 | J32: -2.482482012 | K32: 0.424809455 | L32: 15.71794984 | M32: -1.054581831
F33: 32 | G33: =EXP(MMULT(It0!G33:H33,B$2:B$3)) -> 0.3094171724 | H33: 0.2363014469 | I33: 0.1804630731 | J33: 3.058817838 | K33: 0.424809455 | L33: 15.71794984 | M33: 1.299414739
F34: 33 | G34: =EXP(MMULT(It0!G34:H34,B$2:B$3)) -> 0.3094171724 | H34: 0.2363014469 | I34: 0.1804630731 | J34: -2.482482012 | K34: 0.424809455 | L34: 15.71794984 | M34: -1.054581831
F35: 34 | G35: =EXP(MMULT(It0!G35:H35,B$2:B$3)) -> 0.3448177012 | H35: 0.2564047907 | I35: 0.190661374 | J35: -2.409557105 | K35: 0.4366478833 | L35: 16.59261957 | M35: -1.05212801
F36: 35 | G36: =EXP(MMULT(It0!G36:H36,B$2:B$3)) -> 0.3448177012 | H36: 0.2564047907 | I36: 0.190661374 | J36: -2.409557105 | K36: 0.4366478833 | L36: 16.59261957 | M36: -1.05212801
F37: 36 | G37: =EXP(MMULT(It0!G37:H37,B$2:B$3)) -> 0.384268417 | H37: 0.2775967524 | I37: 0.2005367955 | J37: -2.340682385 | K37: 0.4478133489 | L37: 17.46472061 | M37: -1.048188818
F38: 37 | G38: =EXP(MMULT(It0!G38:H38,B$2:B$3)) -> 0.384268417 | H38: 0.2775967524 | I38: 0.2005367955 | J38: 2.645933651 | K38: 0.4478133489 | L38: 17.46472061 | M38: 1.184884409
F39: 38 | G39: =EXP(MMULT(It0!G39:H39,B$2:B$3)) -> 0.4282327033 | H39: 0.2998339853 | I39: 0.2099335665 | J39: -2.276321235 | K39: 0.4581850789 | L39: 18.32740316 | M39: -1.042976425
F40: 39 | G40: =EXP(MMULT(It0!G40:H40,B$2:B$3)) -> 0.4282327033 | H40: 0.2998339853 | I40: 0.2099335665 | J40: 2.487090431 | K40: 0.4581850789 | L40: 18.32740316 | M40: 1.139547725
F41: 40 | G41: =EXP(MMULT(It0!G41:H41,B$2:B$3)) -> 0.4772269592 | H41: 0.3230559504 | I41: 0.2186908033 | J41: -2.216990055 | K41: 0.4676438851 | L41: 19.17339929 | M41: -1.036761843
F42: 41 | G42: =EXP(MMULT(It0!G42:H42,B$2:B$3)) -> 0.4772269592 | H42: 0.3230559504 | I42: 0.2186908033 | J42: -2.216990055 | K42: 0.4676438851 | L42: 19.17339929 | M42: -1.036761843
F43: 42 | G43: =EXP(MMULT(It0!G43:H43,B$2:B$3)) -> 0.5318266654 | H43: 0.3471846243 | I43: 0.226647461 | J43: -2.163264325 | K43: 0.4760750581 | L43: 19.99515244 | M43: -1.029876189
F44: 43 | G44: =EXP(MMULT(It0!G44:H44,B$2:B$3)) -> 0.5318266654 | H44: 0.3471846243 | I44: 0.226647461 | J44: -2.163264325 | K44: 0.4760750581 | L44: 19.99515244 | M44: -1.029876189
F45: 44 | G45: =EXP(MMULT(It0!G45:H45,B$2:B$3)) -> 0.5318266654 | H45: 0.3471846243 | I45: 0.226647461 | J45: -2.163264325 | K45: 0.4760750581 | L45: 19.99515244 | M45: -1.029876189
F46: 45 | G46: =EXP(MMULT(It0!G46:H46,B$2:B$3)) -> 0.5318266654 | H46: 0.3471846243 | I46: 0.226647461 | J46: 2.248874226 | K46: 0.4760750581 | L46: 19.99515244 | M46: 1.070632928
F47: 46 | G47: =EXP(MMULT(It0!G47:H47,B$2:B$3)) -> 0.5926731433 | H47: 0.3721247802 | I47: 0.2336479282 | J47: -2.115785367 | K47: 0.4833714184 | L47: 20.78497099 | M47: -1.022710174
F48: 47 | G48: =EXP(MMULT(It0!G48:H48,B$2:B$3)) -> 0.5926731433 | H48: 0.3721247802 | I48: 0.2336479282 | J48: -2.115785367 | K48: 0.4833714184 | L48: 20.78497099 | M48: -1.022710174
F49: 48 | G49: =EXP(MMULT(It0!G49:H49,B$2:B$3)) -> 0.5926731433 | H49: 0.3721247802 | I49: 0.2336479282 | J49: 2.164158427 | K49: 0.4833714184 | L49: 20.78497099 | M49: 1.046092328
F50: 49 | G50: =EXP(MMULT(It0!G50:H50,B$2:B$3)) -> 0.6604810885 | H50: 0.3977648966 | I50: 0.2395479836 | J50: -2.075267876 | K50: 0.4894363939 | L50: 21.53520133 | M50: -1.015711626
F51: 50 | G51: =EXP(MMULT(It0!G51:H51,B$2:B$3)) -> 0.6604810885 | H51: 0.3977648966 | I51: 0.2395479836 | J51: -2.075267876 | K51: 0.4894363939 | L51: 21.53520133 | M51: -1.015711626
F52: 51 | G52: =EXP(MMULT(It0!G52:H52,B$2:B$3)) -> 0.6604810885 | H52: 0.3977648966 | I52: 0.2395479836 | J52: 2.099261105 | K52: 0.4894363939 | L52: 21.53520133 | M52: 1.027454785
F53: 52 | G53: =EXP(MMULT(It0!G53:H53,B$2:B$3)) -> 0.6604810885 | H53: 0.3977648966 | I53: 0.2395479836 | J53: 2.099261105 | K53: 0.4894363939 | L53: 21.53520133 | M53: 1.027454785
F54: 53 | G54: =EXP(MMULT(It0!G54:H54,B$2:B$3)) -> 0.7360469647 | H54: 0.423978717 | I54: 0.2442207645 | J54: -2.042508316 | K54: 0.4941869732 | L54: 22.2384138 | M54: -1.009381003
F55: 54 | G55: =EXP(MMULT(It0!G55:H55,B$2:B$3)) -> 0.7360469647 | H55: 0.423978717 | I55: 0.2442207645 | J55: 2.052147607 | K55: 0.4941869732 | L55: 22.2384138 | M55: 1.014144614
F56: 55 | G56: =EXP(MMULT(It0!G56:H56,B$2:B$3)) -> 0.8202583598 | H56: 0.4506274372 | I56: 0.24756235 | J56: -2.018394275 | K56: 0.4975563788 | L56: 22.88759342 | M56: -1.004264946
F57: 56 | G57: =EXP(MMULT(It0!G57:H57,B$2:B$3)) -> 0.8202583598 | H57: 0.4506274372 | I57: 0.24756235 | J57: 2.020992165 | K57: 0.4975563788 | L57: 22.88759342 | M57: 1.005557543
F58: 57 | G58: =EXP(MMULT(It0!G58:H58,B$2:B$3)) -> 0.9141044105 | H58: 0.4775624597 | I58: 0.2494965568 | J58: -2.00391489 | K58: 0.4994963031 | L58: 23.47632624 | M58: -1.000948079
F59: 58 | G59: =EXP(MMULT(It0!G59:H59,B$2:B$3)) -> 0.9141044105 | H59: 0.4775624597 | I59: 0.2494965568 | J59: -2.00391489 | K59: 0.4994963031 | L59: 23.47632624 | M59: -1.000948079
F60: 59 | G60: =EXP(MMULT(It0!G60:H60,B$2:B$3)) -> 0.9141044105 | H60: 0.4775624597 | I60: 0.2494965568 | J60: 2.004156455 | K60: 0.4994963031 | L60: 23.47632624 | M60: 1.00106874
F61: 60 | G61: =EXP(MMULT(It0!G61:H61,B$2:B$3)) -> 1.018687421 | H61: 0.5046286069 | I61: 0.249978576 | J61: -2.000172465 | K61: 0.4999785755 | L61: 23.99897163 | M61: -1.00004338
F62: 61 | G62: =EXP(MMULT(It0!G62:H62,B$2:B$3)) -> 1.018687421 | H62: 0.5046286069 | I62: 0.249978576 | J62: 2.000170349 | K62: 0.4999785755 | L62: 23.99897163 | M62: 1.000042322
F63: 62 | G63: =EXP(MMULT(It0!G63:H63,B$2:B$3)) -> 1.018687421 | H63: 0.5046286069 | I63: 0.249978576 | J63: 2.000170349 | K63: 0.4999785755 | L63: 23.99897163 | M63: 1.000042322
F64: 63 | G64: =EXP(MMULT(It0!G64:H64,B$2:B$3)) -> 1.135235811 | H64: 0.5316676525 | I64: 0.2489971598 | J64: -2.008395419 | K64: 0.4989961521 | L64: 24.45081145 | M64: -1.002181586
F65: 64 | G65: =EXP(MMULT(It0!G65:H65,B$2:B$3)) -> 1.135235811 | H65: 0.5316676525 | I65: 0.2489971598 | J65: -2.008395419 | K65: 0.4989961521 | L65: 24.45081145 | M65: -1.002181586
F66: 65 | G66: =EXP(MMULT(It0!G66:H66,B$2:B$3)) -> 1.135235811 | H66: 0.5316676525 | I66: 0.2489971598 | J66: 2.007714648 | K66: 0.4989961521 | L66: 24.45081145 | M66: 1.001841884
F67: 66 | G67: =EXP(MMULT(It0!G67:H67,B$2:B$3)) -> 1.265118544 | H67: 0.5585220021 | I67: =H67*(1-H67) -> 0.2465751753 | J67: -2.029952716 | K67: 0.4965633648 | L67: 24.82816824 | M67: -1.008000151
F68: 67 | G68: =EXP(MMULT(It0!G68:H68,B$2:B$3)) -> 1.265118544 | H68: =G68/(1+G68) -> 0.5585220021 | I68: 0.2465751753 | J68: 2.02560559 | K68: 0.4965633648 | L68: 24.82816824 | M68: 1.005841527
F69: 68 | G69: =EXP(MMULT(It0!G69:H69,B$2:B$3)) -> 1.409861207 | H69: 0.5850383429 | I69: 0.2427684802 | J69: -2.066369942 | K69: 0.4927154151 | L69: 25.12848617 | M69: -1.018132324
F70: 69 | G70: =EXP(MMULT(It0!G70:H70,B$2:B$3)) -> 1.571163929 | H70: 0.611071084 | I70: 0.2376632143 | J70: -2.119347228 | K70: 0.4875071428 | L70: 25.35037143 | M70: -1.033196912
F71: 70 | G71: =EXP(MMULT(It0!G71:H71,B$2:B$3)) -> 1.571163929 | H71: 0.611071084 | I71: 0.2376632143 | J71: 2.088287524 | K71: 0.4875071428 | L71: 25.35037143 | M71: 1.018055084
F72: 71 | G72: =EXP(MMULT(It0!G72:H72,B$2:B$3)) -> 1.750921353 | H72: 0.6364854274 | I72: 0.2313717281 | J72: 2.131270017 | K72: 0.4810111517 | L72: 25.49359104 | M72: 1.025164645
F73: 72 | G73: =EXP(MMULT(It0!G73:H73,B$2:B$3)) -> 1.750921353 | H73: 0.6364854274 | I73: 0.2313717281 | J73: 2.131270017 | K73: 0.4810111517 | L73: 25.49359104 | M73: 1.025164645
F74: 73 | G74: =EXP(MMULT(It0!G74:H74,B$2:B$3)) -> 1.951244888 | H74: 0.6611599383 | I74: 0.2240274743 | J74: 2.180960908 | K74: 0.4733154068 | L74: 25.55903197 | M74: 1.032282399
F75: 74 | G75: =EXP(MMULT(It0!G75:H75,B$2:B$3)) -> 2.17448751 | H75: 0.6849885227 | I75: 0.2157792465 | J75: -2.397694501 | K75: 0.4645204478 | L75: 25.54862463 | M75: -1.113778123
F76: 75 | G76: =EXP(MMULT(It0!G76:H76,B$2:B$3)) -> 2.17448751 | H76: 0.6849885227 | I76: 0.2157792465 | J76: 2.236671484 | K76: 0.4645204478 | L76: 25.54862463 | M76: 1.038979639
F77: 76 | G77: =EXP(MMULT(It0!G77:H77,B$2:B$3)) -> 2.17448751 | H77: 0.6849885227 | I77: 0.2157792465 | J77: 2.236671484 | K77: 0.4645204478 | L77: 25.54862463 | M77: 1.038979639
F78: 77 | G78: =EXP(MMULT(It0!G78:H78,B$2:B$3)) -> 2.423271399 | H78: 0.7078817647 | I78: 0.2067851719 | J78: 2.297783737 | K78: 0.4547363763 | L78: 25.46523707 | M78: 1.04488585
F79: 78 | G79: =EXP(MMULT(It0!G79:H79,B$2:B$3)) -> 2.423271399 | H79: 0.7078817647 | I79: 0.2067851719 | J79: 2.297783737 | K79: 0.4547363763 | L79: 25.46523707 | M79: 1.04488585
F80: 79 | G80: =EXP(MMULT(It0!G80:H80,B$2:B$3)) -> 2.423271399 | H80: 0.7078817647 | I80: 0.2067851719 | J80: 2.297783737 | K80: 0.4547363763 | L80: 25.46523707 | M80: 1.04488585
F81: 80 | G81: =EXP(MMULT(It0!G81:H81,B$2:B$3)) -> 2.700518742 | H81: 0.7297676165 | I81: 0.1972068424 | J81: -2.707074861 | K81: 0.4440797703 | L81: 25.31254691 | M81: -1.202157182
F82: 81 | G82: =EXP(MMULT(It0!G82:H82,B$2:B$3)) -> 2.700518742 | H82: 0.7297676165 | I82: 0.1972068424 | J82: -2.707074861 | K82: 0.4440797703 | L82: 25.31254691 | M82: -1.202157182
F83: 82 | G83: =EXP(MMULT(It0!G83:H83,B$2:B$3)) -> 2.700518742 | H83: 0.7297676165 | I83: 0.1972068424 | J83: 2.363743107 | K83: 0.4440797703 | L83: 25.31254691 | M83: 1.049690496
F84: 83 | G84: =EXP(MMULT(It0!G84:H84,B$2:B$3)) -> 2.700518742 | H84: 0.7297676165 | I84: 0.1972068424 | J84: 2.363743107 | K84: 0.4440797703 | L84: 25.31254691 | M84: 1.049690496
F85: 84 | G85: =EXP(MMULT(It0!G85:H85,B$2:B$3)) -> 2.700518742 | H85: 0.7297676165 | I85: 0.1972068424 | J85: 2.363743107 | K85: 0.4440797703 | L85: 25.31254691 | M85: 1.049690496
F86: 85 | G86: =EXP(MMULT(It0!G86:H86,B$2:B$3)) -> 2.700518742 | H86: 0.7297676165 | I86: 0.1972068424 | J86: 2.363743107 | K86: 0.4440797703 | L86: 25.31254691 | M86: 1.049690496
F87: 86 | G87: =EXP(MMULT(It0!G87:H87,B$2:B$3)) -> 3.009486052 | H87: 0.7505914756 | I87: 0.1872039124 | J87: -2.907716735 | K87: 0.4326706743 | L87: 25.09489911 | M87: -1.25808376
F88: 87 | G88: =EXP(MMULT(It0!G88:H88,B$2:B$3)) -> 3.009486052 | H88: 0.7505914756 | I88: 0.1872039124 | J88: 2.434051967 | K88: 0.4326706743 | L88: 25.09489911 | M88: 1.053142906
F89: 88 | G89: =EXP(MMULT(It0!G89:H89,B$2:B$3)) -> 3.009486052 | H89: 0.7505914756 | I89: 0.1872039124 | J89: 2.434051967 | K89: 0.4326706743 | L89: 25.09489911 | M89: 1.053142906
F90: 89 | G90: =EXP(MMULT(It0!G90:H90,B$2:B$3)) -> 3.353802422 | H90: 0.7703157141 | I90: 0.1769294147 | J90: 2.508263779 | K90: 0.4206297834 | L90: 24.81715722 | M90: 1.05505045
F91: 90 | G91: =EXP(MMULT(It0!G91:H91,B$2:B$3)) -> 3.353802422 | H91: 0.7703157141 | I91: 0.1769294147 | J91: 2.508263779 | K91: 0.4206297834 | L91: 24.81715722 | M91: 1.05505045
F92: 91 | G92: =EXP(MMULT(It0!G92:H92,B$2:B$3)) -> 3.73751215 | H92: 0.7889187471 | I92: 0.1665259576 | J92: -3.41909196 | K92: 0.4080759213 | L92: 24.48455528 | M92: -1.395249102
F93: 92 | G93: =EXP(MMULT(It0!G93:H93,B$2:B$3)) -> 3.73751215 | H93: 0.7889187471 | I93: 0.1665259576 | J93: 2.585977848 | K93: 0.4080759213 | L93: 24.48455528 | M93: 1.055275293
F94: 93 | G94: =EXP(MMULT(It0!G94:H94,B$2:B$3)) -> 4.165122244 | H94: 0.80639374 | I94: 0.1561228761 | J94: 2.666834617 | K94: 0.3951238743 | L94: 24.10255633 | M94: 1.053730026
F95: 94 | G95: =EXP(MMULT(It0!G95:H95,B$2:B$3)) -> 4.641655362 | H95: 0.8227470599 | I95: 0.1458343353 | J95: 2.750511443 | K95: 0.3818826198 | L95: 23.67672243 | M95: 1.050372516
F96: 95 | G96: =EXP(MMULT(It0!G96:H96,B$2:B$3)) -> 4.641655362 | H96: 0.8227470599 | I96: 0.1458343353 | J96: 2.750511443 | K96: 0.3818826198 | L96: 23.67672243 | M96: 1.050372516
F97: 96 | G97: =EXP(MMULT(It0!G97:H97,B$2:B$3)) -> 5.172708803 | H97: 0.8379965697 | I97: 0.1357583188 | J97: 2.836718805 | K97: 0.3684539576 | L97: 23.21259933 | M97: 1.04520027
F98: 97 | G98: =EXP(MMULT(It0!G98:H98,B$2:B$3)) -> 5.764520257 | H98: 0.8521698565 | I98: 0.1259763921 | J98: -5.012798323 | K98: 0.3549315316 | L98: 22.71561802 | M98: -1.779200187
F99: 98 | G99: =EXP(MMULT(It0!G99:H99,B$2:B$3)) -> 5.764520257 | H99: 0.8521698565 | I99: 0.1259763921 | J99: 2.925196907 | K99: 0.3549315316 | L99: 22.71561802 | M99: 1.038244619
F100: 99 | G100: =EXP(MMULT(It0!G100:H100,B$2:B$3)) -> 6.42404107 | H100: 0.8653024693 | I100: 0.1165541059 | J100: 3.015712626 | K100: 0.3414002137 | L100: 22.19101389 | M100: 1.029564935
F101: 100 | G101: =EXP(MMULT(It0!G101:H101,B$2:B$3)) -> 9.908065417 | H101: 0.9083247155 | I101: 0.08327092668 | J101: 3.39427699 | K101: 0.2885670229 | L101: 19.91112458 | M101: 0.9794764058

Sheet It4
A1: Beta iteration (i-1) | E1: Beta (iteration i) | G1: exp(X*beta) | H1: Calcolo del vettore p =probabilità stimate dato beta | I1: Calcolo diagonale principale matrice W | J1: Calcolo di z | K1: Calcolo di Xw | M1: Calcolo di zw
A2: beta0 | B2: ='It3'!E2:E3 -> -5.307673 | E2: =Q4 -> -5.309453024 | F2: 1 | G2: =EXP(MMULT(It0!G2:H2,B$2:B$3)) -> 0.04550355721 | H2: =G2/(1+G2) -> 0.04352310128 | I2: =H2*(1-H2) -> 0.04162884093 | J2: =MMULT(X,B2:B3)+(y-H2:H101)/I2:I101 -> -4.135468333 | K2: =SQRT(I2:I101)*X -> 0.2040314704 | L2: 4.080629409 | M2: =SQRT(I2:I101)*J2:J101 -> -0.8437656849 | P2: Calcolo del nuovo beta
A3: beta1 | B3: 0.1108854112 | E3: =P4 -> 0.1109211352 | F3: 2 | G3: =EXP(MMULT(It0!G3:H3,B$2:B$3)) -> 0.06346234493 | H3: =G3/(1+G3) -> 0.0596752158 | I3: =H3*(1-H3) -> 0.05611408442 | J3: -3.820770887 | K3: 0.236884116 | L3: 5.448334668 | M3: -0.9050799341
F4: 3 | G4: =EXP(MMULT(It0!G4:H4,B$2:B$3)) -> 0.07090437569 | H4: =G4/(1+G4) -> 0.06620981042 | I4: 0.06182607142 | J4: -3.717327507 | K4: 0.2486484897 | L4: 5.967563752 | M4: -0.9243078702 | P4: =LINEST(M2:M101,K2:L101,0,1) -> 0.1109211352 | Q4: -5.309453024
A5: Iterazione | B5: 4 | F5: 4 | G5: =EXP(MMULT(It0!G5:H5,B$2:B$3)) -> 0.07921911013 | H5: 0.07340410245 | I5: 0.06801594019 | J5: -3.61475683 | K5: 0.2607986583 | L5: 6.519966459 | M5: -0.9427237315 | P5: 0.0245315476 | Q5: 1.15586303
A6: Criterio di convergenza | F6: 5 | G6: =EXP(MMULT(It0!G6:H6,B$2:B$3)) -> 0.07921911013 | H6: 0.07340410245 | I6: 0.06801594019 | J6: 11.08767906 | K6: 0.2607986583 | L6: 6.519966459 | M6: 2.891651822 | P6: 0.1772963515 | Q6: 1.01978655
B7: =SUMSQ(E2:E3-B2:B3)/SUMSQ(E2:E3) -> 1.12392621e-07 | F7: 6 | G7: =EXP(MMULT(It0!G7:H7,B$2:B$3)) -> 0.08850888747 | H7: 0.08131204852 | I7: 0.07470039929 | J7: -3.513161196 | K7: 0.2733137378 | L7: 7.106157184 | M7: -0.9601952181 | P7: 10.55972128 | Q7: 98
F8: 7 | G8: =EXP(MMULT(It0!G8:H8,B$2:B$3)) -> 0.08850888747 | H8: 0.08131204852 | I8: 0.07470039929 | J8: -3.513161196 | K8: 0.2733137378 | L8: 7.106157184 | M8: -0.9601952181 | P8: 21.96347278 | Q8: 101.9165315
F9: 8 | G9: =EXP(MMULT(It0!G9:H9,B$2:B$3)) -> 0.1104843401 | H9: 0.09949202897 | I9: 0.08959336515 | J9: -3.313365826 | K9: 0.299321508 | L9: 8.381002224 | M9: -0.9917616557
F10: 9 | G10: =EXP(MMULT(It0!G10:H10,B$2:B$3)) -> 0.1104843401 | H10: 0.09949202897 | I10: 0.08959336515 | J10: -3.313365826 | K10: 0.299321508 | L10: 8.381002224 | M10: -0.9917616557 | P10: Regressione di zw su Xw
F11: 10 | G11: =EXP(MMULT(It0!G11:H11,B$2:B$3)) -> 0.1234404933 | H11: 0.1098771978 | I11: 0.09780419918 | J11: -3.215436568 | K11: 0.3127366291 | L11: 9.069362244 | M11: -1.005584793
F12: 11 | G12: =EXP(MMULT(It0!G12:H12,B$2:B$3)) -> 0.1379159739 | H12: 0.1212004903 | I12: 0.1065109314 | J12: -3.119026638 | K12: 0.3263601254 | L12: 9.790803761 | M12: -1.017925925
F13: 12 | G13: =EXP(MMULT(It0!G13:H13,B$2:B$3)) -> 0.1379159739 | H13: 0.1212004903 | I13: 0.1065109314 | J13: -3.119026638 | K13: 0.3263601254 | L13: 9.790803761 | M13: -1.017925925
F14: 13 | G14: =EXP(MMULT(It0!G14:H14,B$2:B$3)) -> 0.1379159739 | H14: 0.1212004903 | I14: 0.1065109314 | J14: -3.119026638 | K14: 0.3263601254 | L14: 9.790803761 | M14: -1.017925925
F15: 14 | G15: =EXP(MMULT(It0!G15:H15,B$2:B$3)) -> 0.1379159739 | H15: 0.1212004903 | I15: 0.1065109314 | J15: -3.119026638 | K15: 0.3263601254 | L15: 9.790803761 | M15: -1.017925925
F16: 15 | G16: =EXP(MMULT(It0!G16:H16,B$2:B$3)) -> 0.1379159739 | H16: 0.1212004903 | I16: 0.1065109314 | J16: -3.119026638 | K16: 0.3263601254 | L16: 9.790803761 | M16: -1.017925925
F17: 16 | G17: =EXP(MMULT(It0!G17:H17,B$2:B$3)) -> 0.1379159739 | H17: 0.1212004903 | I17: 0.1065109314 | J17: 6.269681043 | K17: 0.3263601254 | L17: 9.790803761 | M17: 2.046173891
F18: 17 | G18: =EXP(MMULT(It0!G18:H18,B$2:B$3)) -> 0.1721584782 | H18: 0.1468730393 | I18: 0.1253013496 | J18: -2.93149832 | K18: 0.3539793068 | L18: 11.32733782 | M18: -1.037689743
F19: 18 | G19: =EXP(MMULT(It0!G19:H19,B$2:B$3)) -> 0.1721584782 | H19: 0.1468730393 | I19: 0.1253013496 | J19: -2.93149832 | K19: 0.3539793068 | L19: 11.32733782 | M19: -1.037689743
F20: 19 | G20: =EXP(MMULT(It0!G20:H20,B$2:B$3)) -> 0.1923469647 | H20: 0.1613179472 | I20: 0.1352944671 | J20: -2.840801395 | K20: 0.3678239621 | L20: 12.13819075 | M20: -1.044914825
F21: 20 | G21: =EXP(MMULT(It0!G21:H21,B$2:B$3)) -> 0.1923469647 | H21: 0.1613179472 | I21: 0.1352944671 | J21: -2.840801395 | K21: 0.3678239621 | L21: 12.13819075 | M21: -1.044914825
F22: 21 | G22: =EXP(MMULT(It0!G22:H22,B$2:B$3)) -> 0.2149028918 | H22: 0.1768889458 | I22: 0.1455992467 | J22: -2.752471911 | K22: 0.3815746934 | L22: 12.97353958 | M22: -1.050273626
F23: 22 | G23: =EXP(MMULT(It0!G23:H23,B$2:B$3)) -> 0.2149028918 | H23: 0.1768889458 | I23: 0.1455992467 | J23: -2.752471911 | K23: 0.3815746934 | L23: 12.97353958 | M23: -1.050273626
F24: 23 | G24: =EXP(MMULT(It0!G24:H24,B$2:B$3)) -> 0.2149028918 | H24: 0.1768889458 | I24: 0.1455992467 | J24: 4.115695494 | K24: 0.3815746934 | L24: 12.97353958 | M24: 1.570445246
F25: 24 | G25: =EXP(MMULT(It0!G25:H25,B$2:B$3)) -> 0.2149028918 | H25: 0.1768889458 | I25: 0.1455992467 | J25: -2.752471911 | K25: 0.3815746934 | L25: 12.97353958 | M25: -1.050273626
F26: 25 | G26: =EXP(MMULT(It0!G26:H26,B$2:B$3)) -> 0.2149028918 | H26: 0.1768889458 | I26: 0.1455992467 | J26: -2.752471911 | K26: 0.3815746934 | L26: 12.97353958 | M26: -1.050273626
F27: 26 | G27: =EXP(MMULT(It0!G27:H27,B$2:B$3)) -> 0.2401038819 | H27: 0.1936159425 | I27: 0.1561288093 | J27: -2.66678749 | K27: 0.3951313824 | L27: 13.82959838 | M27: -1.053731427
F28: 27 | G28: =EXP(MMULT(It0!G28:H28,B$2:B$3)) -> 0.2401038819 | H28: 0.1936159425 | I28: 0.1561288093 | J28: -2.66678749 | K28: 0.3951313824 | L28: 13.82959838 | M28: -1.053731427
F29: 28 | G29: =EXP(MMULT(It0!G29:H29,B$2:B$3)) -> 0.2682601134 | H29: 0.2115182135 | I29: 0.1667782589 | J29: -2.58405831 | K29: 0.4083849396 | L29: 14.70185782 | M29: -1.055290497
F30: 29 | G30: =EXP(MMULT(It0!G30:H30,B$2:B$3)) -> 0.2682601134 | H30: 0.2115182135 | I30: 0.1667782589 | J30: 3.411927059 | K30: 0.4083849396 | L30: 14.70185782 | M30: 1.393379626
F31: 30 | G31: =EXP(MMULT(It0!G31:H31,B$2:B$3)) -> 0.2682601134 | H31: 0.2115182135 | I31: 0.1667782589 | J31: -2.58405831 | K31: 0.4083849396 | L31: 14.70185782 | M31: -1.055290497
F32: 31 | G32: =EXP(MMULT(It0!G32:H32,B$2:B$3)) -> 0.2997181382 | H32: 0.2306024124 | I32: 0.1774249398 | J32: -2.504630924 | K32: 0.4212183992 | L32: 15.58508077 | M32: -1.054996628
F33: 32 | G33: =EXP(MMULT(It0!G33:H33,B$2:B$3)) -> 0.2997181382 | H33: 0.2306024124 | I33: 0.1774249398 | J33: 3.131555291 | K33: 0.4212183992 | L33: 15.58508077 | M33: 1.319068707
F34: 33 | G34: =EXP(MMULT(It0!G34:H34,B$2:B$3)) -> 0.2997181382 | H34: 0.2306024124 | I34: 0.1774249398 | J34: -2.504630924 | K34: 0.4212183992 | L34: 15.58508077 | M34: -1.054996628
F35: 34 | G35: =EXP(MMULT(It0!G35:H35,B$2:B$3)) -> 0.3348651471 | H35: 0.2508606565 | I35: 0.1879295875 | J35: -2.428892521 | K35: 0.433508463 | L35: 16.47332159 | M35: -1.052945464
F36: 35 | G36: =EXP(MMULT(It0!G36:H36,B$2:B$3)) -> 0.3348651471 | H36: 0.2508606565 | I36: 0.1879295875 | J36: -2.428892521 | K36: 0.433508463 | L36: 16.47332159 | M36: -1.052945464
F37: 36 | G37: =EXP(MMULT(It0!G37:H37,B$2:B$3)) -> 0.3741337358 | H37: 0.2722687946 | I37: 0.1981384981 | J37: -2.357275699 | K37: 0.4451275077 | L37: 17.3599728 | M37: -1.049288257
F38: 37 | G38: =EXP(MMULT(It0!G38:H38,B$2:B$3)) -> 0.3741337358 | H38: 0.2722687946 | I38: 0.1981384981 | J38: 2.689699067 | K38: 0.4451275077 | L38: 17.3599728 | M38: 1.197259042
F39: 38 | G39: =EXP(MMULT(It0!G39:H39,B$2:B$3)) -> 0.4180072292 | H39: 0.2947849775 | I39: 0.2078867946 | J39: -2.290263781 | K39: 0.4559460435 | L39: 18.23784174 | M39: -1.044236709
F40: 39 | G40: =EXP(MMULT(It0!G40:H40,B$2:B$3)) -> 0.4180072292 | H40: 0.2947849775 | I40: 0.2078867946 | J40: 2.520046572 | K40: 0.4559460435 | L40: 18.23784174 | M40: 1.149005264
F41: 40 | G41: =EXP(MMULT(It0!G41:H41,B$2:B$3)) -> 0.46702563 | H41: 0.3183486508 | I41: 0.2170027873 | J41: -2.228396771 | K41: 0.4658355797 | L41: 19.09925877 | M41: -1.038066501
F42: 41 | G42: =EXP(MMULT(It0!G42:H42,B$2:B$3)) -> 0.46702563 | H42: 0.3183486508 | I42: 0.2170027873 | J42: -2.228396771 | K42: 0.4658355797 | L42: 19.09925877 | M42: -1.038066501
F43: 42 | G43: =EXP(MMULT(It0!G43:H43,B$2:B$3)) -> 0.5217922653 | H43: 0.3428800876 | I43: 0.2253133331 | J43: -2.172277995 | K43: 0.4746718162 | L43: 19.93621628 | M43: -1.031119141
F44: 43 | G44: =EXP(MMULT(It0!G44:H44,B$2:B$3)) -> 0.5217922653 | H44: 0.3428800876 | I44: 0.2253133331 | J44: -2.172277995 | K44: 0.4746718162 | L44: 19.93621628 | M44: -1.031119141
F45: 44 | G45: =EXP(MMULT(It0!G45:H45,B$2:B$3)) -> 0.5217922653 | H45: 0.3428800876 | I45: 0.2253133331 | J45: -2.172277995 | K45: 0.4746718162 | L45: 19.93621628 | M45: -1.031119141
F46: 45 | G46: =EXP(MMULT(It0!G46:H46,B$2:B$3)) -> 0.5217922653 | H46: 0.3428800876 | I46: 0.2253133331 | J46: 2.26598576 | K46: 0.4746718162 | L46: 19.93621628 | M46: 1.075599576
F47: 46 | G47: =EXP(MMULT(It0!G47:H47,B$2:B$3)) -> 0.5829812127 | H47: 0.3682805633 | I47: 0.23264999 | J47: -2.122581531 | K47: 0.4823380454 | L47: 20.74053595 | M47: -1.023801827
F48: 47 | G48: =EXP(MMULT(It0!G48:H48,B$2:B$3)) -> 0.5829812127 | H48: 0.3682805633 | I48: 0.23264999 | J48: -2.122581531 | K48: 0.4823380454 | L48: 20.74053595 | M48: -1.023801827
F49: 48 | G49: =EXP(MMULT(It0!G49:H49,B$2:B$3)) -> 0.5829812127 | H49: 0.3682805633 | I49: 0.23264999 | J49: 2.175720824 | K49: 0.4823380454 | L49: 20.74053595 | M49: 1.04943293
F50: 49 | G50: =EXP(MMULT(It0!G50:H50,B$2:B$3)) -> 0.6513455967 | H50: 0.3944332416 | I50: 0.2388556595 | J50: -2.080060504 | K50: 0.4887286154 | L50: 21.50405908 | M50: -1.01658509
F51: 50 | G51: =EXP(MMULT(It0!G51:H51,B$2:B$3)) -> 0.6513455967 | H51: 0.3944332416 | I51: 0.2388556595 | J51: -2.080060504 | K51: 0.4887286154 | L51: 21.50405908 | M51: -1.01658509
F52: 51 | G52: =EXP(MMULT(It0!G52:H52,B$2:B$3)) -> 0.6513455967 | H52: 0.3944332416 | I52: 0.2388556595 | J52: 2.106568367 | K52: 0.4887286154 | L52: 21.50405908 | M52: 1.029540241
F53: 52 | G53: =EXP(MMULT(It0!G53:H53,B$2:B$3)) -> 0.6513455967 | H53: 0.3944332416 | I53: 0.2388556595 | J53: 2.106568367 | K53: 0.4887286154 | L53: 21.50405908 | M53: 1.029540241
F54: 53 | G54: =EXP(MMULT(It0!G54:H54,B$2:B$3)) -> 0.7277268582 | H54: 0.4212048072 | I54: 0.2437913176 | J54: -2.045556354 | K54: 0.4937522836 | L54: 22.21885276 | M54: -1.009998121
F55: 54 | G55: =EXP(MMULT(It0!G55:H55,B$2:B$3)) -> 0.7277268582 | H55: 0.4212048072 | I55: 0.2437913176 | J55: 2.056312449 | K55: 0.4937522836 | L55: 22.21885276 | M55: 1.015308967
F56: 55 | G56: =EXP(MMULT(It0!G56:H56,B$2:B$3)) -> 0.8130651115 | H56: 0.4484478281 | I56: 0.2473423736 | J56: -2.020009196 | K56: 0.4973352728 | L56: 22.87742255 | M56: -1.004621825
F57: 56 | G57: =EXP(MMULT(It0!G57:H57,B$2:B$3)) -> 0.8130651115 | H57: 0.4484478281 | I57: 0.2473423736 | J57: 2.022969714 | K57: 0.4973352728 | L57: 22.87742255 | M57: 1.006094195
F58: 57 | G58: =EXP(MMULT(It0!G58:H58,B$2:B$3)) -> 0.9084107148 | H58: 0.4760037804 | I58: 0.2494241814 | J58: -2.004469388 | K58: 0.4994238495 | L58: 23.47292093 | M58: -1.001079818
F59: 58 | G59: =EXP(MMULT(It0!G59:H59,B$2:B$3)) -> 0.9084107148 | H59: 0.4760037804 | I59: 0.2494241814 | J59: -2.004469388 | K59: 0.4994238495 | L59: 23.47292093 | M59: -1.001079818
F60: 59 | G60: =EXP(MMULT(It0!G60:H60,B$2:B$3)) -> 0.9084107148 | H60: 0.4760037804 | I60: 0.2494241814 | J60: 2.004764978 | K60: 0.4994238495 | L60: 23.47292093 | M60: 1.001227443
F61: 60 | G61: =EXP(MMULT(It0!G61:H61,B$2:B$3)) -> 1.014937199 | H61: 0.5037066165 | I61: 0.249986261 | J61: -2.000110461 | K61: 0.4999862608 | L61: 23.99934052 | M61: -1.000027751
F62: 61 | G62: =EXP(MMULT(It0!G62:H62,B$2:B$3)) -> 1.014937199 | H62: 0.5037066165 | I62: 0.249986261 | J62: 2.000109375 | K62: 0.4999862608 | L62: 23.99934052 | M62: 1.000027208
F63: 62 | G63: =EXP(MMULT(It0!G63:H63,B$2:B$3)) -> 1.014937199 | H63: 0.5037066165 | I63: 0.249986261 | J63: 2.000109375 | K63: 0.4999862608 | L63: 23.99934052 | M63: 1.000027208
F64: 63 | G64: =EXP(MMULT(It0!G64:H64,B$2:B$3)) -> 1.133955711 | H64: 0.531386713 | I64: 0.2490148742 | J64: -2.008243562 | K64: 0.4990139019 | L64: 24.45168119 | M64: -1.002141456
F65: 64 | G65: =EXP(MMULT(It0!G65:H65,B$2:B$3)) -> 1.133955711 | H65: 0.531386713 | I65: 0.2490148742 | J65: -2.008243562 | K65: 0.4990139019 | L65: 24.45168119 | M65: -1.002141456
F66: 65 | G66: =EXP(MMULT(It0!G66:H66,B$2:B$3)) -> 1.133955711 | H66: 0.531386713 | I66: 0.2490148742 | J66: 2.007580806 | K66: 0.4990139019 | L66: 24.45168119 | M66: 1.001810731
F67: 66 | G67: =EXP(MMULT(It0!G67:H67,B$2:B$3)) -> 1.266931151 | H67: 0.5588750018 | I67: =H67*(1-H67) -> 0.2465337342 | J67: -2.030333591 | K67: 0.4965216351 | L67: 24.82608176 | M67: -1.008104555
F68: 67 | G68: =EXP(MMULT(It0!G68:H68,B$2:B$3)) -> 1.266931151 | H68: =G68/(1+G68) -> 0.5588750018 | I68: 0.2465337342 | J68: 2.025906434 | K68: 0.4965216351 | L68: 24.82608176 | M68: 1.005906375
F69: 68 | G69: =EXP(MMULT(It0!G69:H69,B$2:B$3)) -> 1.415500206 | H69: 0.5860070732 | I69: 0.2426027834 | J69: -2.068017235 | K69: 0.4925472397 | L69: 25.11990923 | M69: -1.018596181
F70: 69 | G70: =EXP(MMULT(It0!G70:H70,B$2:B$3)) -> 1.581491489 | H70: 0.6126270398 | I70: 0.2373151499 | J70: -2.123123107 | K70: 0.4871500281 | L70: 25.33180146 | M70: -1.034279481
F71: 70 | G71: =EXP(MMULT(It0!G71:H71,B$2:B$3)) -> 1.581491489 | H71: 0.6126270398 | I71: 0.2373151499 | J71: 2.090682882 | K71: 0.4871500281 | L71: 25.33180146 | M71: 1.018476225
F72: 71 | G72: =EXP(MMULT(It0!G72:H72,B$2:B$3)) -> 1.766948051 | H72: 0.6385909741 | I72: 0.2307925419 | J72: 2.135201388 | K72: 0.4804087238 | L72: 25.46166236 | M72: 1.025769374
F73: 72 | G73: =EXP(MMULT(It0!G73:H73,B$2:B$3)) -> 1.766948051 | H73: 0.6385909741 | I73: 0.2307925419 | J73: 2.135201388 | K73: 0.4804087238 | L73: 25.46166236 | M73: 1.025769374
F74: 73 | G74: =EXP(MMULT(It0!G74:H74,B$2:B$3)) -> 1.974152525 | H74: 0.6637697658 | I74: 0.2231794638 | J74: 2.186685679 | K74: 0.4724187378 | L74: 25.51061184 | M74: 1.033031288
F75: 74 | G75: =EXP(MMULT(It0!G75:H75,B$2:B$3)) -> 2.205655219 | H75: 0.6880512932 | I75: 0.2146367111 | J75: -2.414630602 | K75: 0.4632890147 | L75: 25.48089581 | M75: -1.118671833
F76: 75 | G76: =EXP(MMULT(It0!G76:H76,B$2:B$3)) -> 2.205655219 | H76: 0.6880512932 | I76: 0.2146367111 | J76: 2.244404633 | K76: 0.4632890147 | L76: 25.48089581 | M76: 1.039808011
F77: 76 | G77: =EXP(MMULT(It0!G77:H77,B$2:B$3)) -> 2.205655219 | H77: 0.6880512932 | I77: 0.2146367111 | J77: 2.244404633 | K77: 0.4632890147 | L77: 25.48089581 | M77: 1.039808011
F78: 77 | G78: =EXP(MMULT(It0!G78:H78,B$2:B$3)) -> 2.464305509 | H78: 0.7113418556 | I78: 0.2053346201 | J78: 2.307703869 | K78: 0.4531386323 | L78: 25.37576341 | M78: 1.045709775
F79: 78 | G79: =EXP(MMULT(It0!G79:H79,B$2:B$3)) -> 2.464305509 | H79: 0.7113418556 | I79: 0.2053346201 | J79: 2.307703869 | K79: 0.4531386323 | L79: 25.37576341 | M79: 1.045709775
F80: 79 | G80: =EXP(MMULT(It0!G80:H80,B$2:B$3)) -> 2.464305509 | H80: 0.7113418556 | I80: 0.2053346201 | J80: 2.307703869 | K80: 0.4531386323 | L80: 25.37576341 | M80: 1.045709775
F81: 80 | G81: =EXP(MMULT(It0!G81:H81,B$2:B$3)) -> 2.753286911 | H81: 0.7335668646 | I81: 0.1954465198 | J81: -2.740491473 | K81: 0.4420933383 | L81: 25.19932028 | M81: -1.211553024
F82: 81 | G82: =EXP(MMULT(It0!G82:H82,B$2:B$3)) -> 2.753286911 | H82: 0.7335668646 | I82: 0.1954465198 | J82: -2.740491473 | K82: 0.4420933383 | L82: 25.19932028 | M82: -1.211553024
F83: 82 | G83: =EXP(MMULT(It0!G83:H83,B$2:B$3)) -> 2.753286911 | H83: 0.7335668646 | I83: 0.1954465198 | J83: 2.375997688 | K83: 0.4420933383 | L83: 25.19932028 | M83: 1.05041275
F84: 83 | G84: =EXP(MMULT(It0!G84:H84,B$2:B$3)) -> 2.753286911 | H84: 0.7335668646 | I84: 0.1954465198 | J84: 2.375997688 | K84: 0.4420933383 | L84: 25.19932028 | M84: 1.05041275
F85: 84 | G85: =EXP(MMULT(It0!G85:H85,B$2:B$3)) -> 2.753286911 | H85: 0.7335668646 | I85: 0.1954465198 | J85: 2.375997688 | K85: 0.4420933383 | L85: 25.19932028 | M85: 1.05041275
F86: 85 | G86: =EXP(MMULT(It0!G86:H86,B$2:B$3)) -> 2.753286911 | H86: 0.7335668646 | I86: 0.1954465198 | J86: 2.375997688 | K86: 0.4420933383 | L86: 25.19932028 | M86: 1.05041275
F87: 86 | G87: =EXP(MMULT(It0!G87:H87,B$2:B$3)) -> 3.076156258 | H87: 0.7546708378 | I87: 0.1851427644 | J87: -2.952475409 | K87: 0.4302821916 | L87: 24.95636711 | M87: -1.27039759
F88: 87 | G88: =EXP(MMULT(It0!G88:H88,B$2:B$3)) -> 3.076156258 | H88: 0.7546708378 | I88: 0.1851427644 | J88: 2.448761865 | K88: 0.4302821916 | L88: 24.95636711 | M88: 1.053658622
F89: 88 | G89: =EXP(MMULT(It0!G89:H89,B$2:B$3)) -> 3.076156258 | H89: 0.7546708378 | I89: 0.1851427644 | J89: 2.448761865 | K89: 0.4302821916 | L89: 24.95636711 | M89: 1.053658622
F90: 89 | G90: =EXP(MMULT(It0!G90:H90,B$2:B$3)) -> 3.436887484 | H90: 0.7746167773 | I90: 0.1745856256 | J90: 2.525527197 | K90: 0.4178344476 | L90: 24.65223241 | M90: 1.055252261
F91: 90 | G91: =EXP(MMULT(It0!G91:H91,B$2:B$3)) -> 3.436887484 | H91: 0.7746167773 | I91: 0.1745856256 | J91: 2.525527197 | K91: 0.4178344476 | L91: 24.65223241 | M91: 1.055252261
F92: 91 | G92: =EXP(MMULT(It0!G92:H92,B$2:B$3)) -> 3.839920533 | H92: 0.7933850374 | I92: 0.1639252198 | J92: -3.494468861 | K92: 0.4048767959 | L92: 24.29260775 | M92: -1.414829356
F93: 92 | G93: =EXP(MMULT(It0!G93:H93,B$2:B$3)) -> 3.839920533 | H93: 0.7933850374 | I93: 0.1639252198 | J93: 2.605873728 | K93: 0.4048767959 | L93: 24.29260775 | M93: 1.055057805
F94: 93 | G94: =EXP(MMULT(It0!G94:H94,B$2:B$3)) -> 4.290216008 | H94: 0.8109718018 | I94: 0.1532965385 | J94: 2.68942558 | K94: 0.3915310185 | L94: 23.88339213 | M94: 1.052993537
F95: 94 | G95: =EXP(MMULT(It0!G95:H95,B$2:B$3)) -> 4.793316225 | H95: 0.8273872923 | I95: 0.1428175608 | J95: 2.775846327 | K95: 0.3779121073 | L95: 23.43055065 | M95: 1.049025935
F96: 95 | G96: =EXP(MMULT(It0!G96:H96,B$2:B$3)) -> 4.793316225 | H96: 0.8273872923 | I96: 0.1428175608 | J96: 2.775846327 | K96: 0.3779121073 | L96: 23.43055065 | M96: 1.049025935
F97: 96 | G97: =EXP(MMULT(It0!G97:H97,B$2:B$3)) -> 5.355413431 | H97: 0.842653824 | I97: 0.1325883569 | J97: 2.864834853 | K97: 0.3641268417 | L97: 22.93999103 | M97: 1.043163267
F98: 97 | G98: =EXP(MMULT(It0!G98:H98,B$2:B$3)) -> 5.983426019 | H98: 0.8568038099 | I98: 0.1226910413 | J98: -5.194432702 | K98: 0.3502728098 | L98: 22.41745983 | M98: -1.819468538
F99: 98 | G99: =EXP(MMULT(It0!G99:H99,B$2:B$3)) -> 5.983426019 | H99: 0.8568038099 | I99: 0.1226910413 | J99: 2.956121647 | K99: 0.3502728098 | L99: 22.41745983 | M99: 1.035449035
F100: 99 | G100: =EXP(MMULT(It0!G100:H100,B$2:B$3)) -> 6.685083679 | H100: 0.8698777994 | I100: 0.1131904135 | J100: 3.049465487 | K100: 0.3364378301 | L100: 21.86845895 | M100: 1.025955551
F101: 100 | G101: =EXP(MMULT(It0!G101:H101,B$2:B$3)) -> 10.41680506 | H101: 0.9124098209 | I101: 0.07991813966 | J101: 3.439419097 | K101: 0.2826979654 | L101: 19.50615961 | M101: 0.9723167811

Sheet It5
A1: Beta iteration (i-1) | E1: Beta (iteration i) | G1: exp(X*beta) | H1: Calcolo del vettore p =probabilità stimate dato beta | I1: Calcolo diagonale principale matrice W | J1: Calcolo di z | K1: Calcolo di Xw | M1: Calcolo di zw
A2: beta0 | B2: ='It4'!E2:E3 -> -5.309453024 | E2: =Q4 -> -5.309453374 | F2: 1 | G2: =EXP(MMULT(It0!G2:H2,B$2:B$3)) -> 0.04545509699 | H2: =G2/(1+G2) -> 0.04347876549 | I2: =H2*(1-H2) -> 0.04158836244 | J2: =MMULT(X,B2:B3)+(y-H2:H101)/I2:I101 -> -4.136485417 | K2: =SQRT(I2:I101)*X -> 0.2039322496 | L2: 4.078644993 | M2: =SQRT(I2:I101)*J2:J101 -> -0.8435627766 | P2: Calcolo del nuovo beta
A3: beta1 | B3: 0.1109211352 | E3: =P4 -> 0.1109211422 | F3: 2 | G3: =EXP(MMULT(It0!G3:H3,B$2:B$3)) -> 0.06340155354 | H3: =G3/(1+G3) -> 0.05962146033 | I3: =H3*(1-H3) -> 0.0560667418 | J3: -3.821668468 | K3: 0.2367841671 | L3: 5.446035844 | M3: -0.9049105851
F4: 3 | G4: =EXP(MMULT(It0!G4:H4,B$2:B$3)) -> 0.07083898609 | H4: =G4/(1+G4) -> 0.06615278955 | I4: 0.06177659799 | J4: -3.718184765 | K4: 0.2485489851 | L4: 5.965175642 | M4: -0.9241510497 | P4: =LINEST(M2:M101,K2:L101,0,1) -> 0.1109211422 | Q4: -5.309453374
A5: Iterazione | B5: 5 | F5: 4 | G5: =EXP(MMULT(It0!G5:H5,B$2:B$3)) -> 0.07914887996 | H5: 0.07334380032 | I5: 0.06796448727 | J5: -3.615573524 | K5: 0.2606999948 | L5: 6.517499869 | M5: -0.9425799987 | P5: 0.02453907228 | Q5: 1.156235359
A6: Criterio di convergenza | F6: 5 | G6: =EXP(MMULT(It0!G6:H6,B$2:B$3)) -> 0.07914887996 | H6: 0.07334380032 | I6: 0.06796448727 | J6: 11.09799293 | K6: 0.2606999948 | L6: 6.517499869 | M6: 2.893246699 | P6: 0.1772028988 | Q6: 1.019918559
B7: =SUMSQ(E2:E3-B2:B3)/SUMSQ(E2:E3) -> 4.339527477e-15 | F7: 6 | G7: =EXP(MMULT(It0!G7:H7,B$2:B$3)) -> 0.08843358078 | H7: 0.08124848622 | I7: 0.0746471697 | J7: -3.513937089 | K7: 0.2732163423 | L7: 7.1036249 | M7: -0.9600650386 | P7: 10.55295653 | Q7: 98
F8: 7 | G8: =EXP(MMULT(It0!G8:H8,B$2:B$3)) -> 0.08843358078 | H8: 0.08124848622 | I8: 0.0746471697 | J8: -3.513937089 | K8: 0.2732163423 | L8: 7.1036249 | M8: -0.9600650386 | P8: 21.95508554 | Q8: 101.9429189
F9: 8 | G9: =EXP(MMULT(It0!G9:H9,B$2:B$3)) -> 0.1103982234 | H9: 0.09942219021 | I9: 0.0895374183 | J9: -3.314059461 | K9: 0.2992280373 | L9: 8.378385044 | M9: -0.9916595081
F10: 9 | G10: =EXP(MMULT(It0!G10:H10,B$2:B$3)) -> 0.1103982234 | H10: 0.09942219021 | I10: 0.0895374183 | J10: -3.314059461 | K10: 0.2992280373 | L10: 8.378385044 | M10: -0.9916595081 | P10: Regressione di zw su Xw
F11: 10 | G11: =EXP(MMULT(It0!G11:H11,B$2:B$3)) -> 0.1233486843 | H11: 0.1098044499 | I11: 0.09774743265 | J11: -3.216088787 | K11: 0.3126458582 | L11: 9.066729888 | M11: -1.005496839
F12: 11 | G12: =EXP(MMULT(It0!G12:H12,B$2:B$3)) -> 0.1378183221 | H12: 0.1211250684 | I12: 0.1064537862 | J12: -3.11963729 | K12: 0.3262725643 | L12: 9.78817693 | M12: -1.017852058
F13: 12 | G13: =EXP(MMULT(It0!G13:H13,B$2:B$3)) -> 0.1378183221 | H13: 0.1211250684 | I13: 0.1064537862 | J13: -3.11963729 | K13: 0.3262725643 | L13: 9.78817693 | M13: -1.017852058
F14: 13 | G14: =EXP(MMULT(It0!G14:H14,B$2:B$3)) -> 0.1378183221 | H14: 0.1211250684 | I14: 0.1064537862 | J14: -3.11963729 | K14: 0.3262725643 | L14: 9.78817693 | M14: -1.017852058
F15: 14 | G15: =EXP(MMULT(It0!G15:H15,B$2:B$3)) -> 0.1378183221 | H15: 0.1211250684 | I15: 0.1064537862 | J15: -3.11963729 | K15: 0.3262725643 | L15: 9.78817693 | M15: -1.017852058
F16: 15 | G16: =EXP(MMULT(It0!G16:H16,B$2:B$3)) -> 0.1378183221 | H16: 0.1211250684 | I16: 0.1064537862 | J16: -3.11963729 | K16: 0.3262725643 | L16: 9.78817693 | M16: -1.017852058
F17: 16 | G17: =EXP(MMULT(It0!G17:H17,B$2:B$3)) -> 0.1378183221 | H17: 0.1211250684 | I17: 0.1064537862 | J17: 6.274110321 | K17: 0.3262725643 | L17: 9.78817693 | M17: 2.047070063
F18: 17 | G18: =EXP(MMULT(It0!G18:H18,B$2:B$3)) -> 0.172048873 | H18: 0.1467932584 | I18: 0.1252449977 | J18: -2.93202557 | K18: 0.3538997 | L18: 11.3247904 | M18: -1.03764297
F19: 18 | G19: =EXP(MMULT(It0!G19:H19,B$2:B$3)) -> 0.172048873 | H19: 0.1467932584 | I19: 0.1252449977 | J19: -2.93202557 | K19: 0.3538997 | L19: 11.3247904 | M19: -1.03764297
F20: 19 | G20: =EXP(MMULT(It0!G20:H20,B$2:B$3)) -> 0.1922313736 | H20: 0.161236634 | I20: 0.1352393818 | J20: -2.841286935 | K20: 0.3677490745 | L20: 12.13571946 | M20: -1.044880641
F21: 20 | G21: =EXP(MMULT(It0!G21:H21,B$2:B$3)) -> 0.1922313736 | H21: 0.161236634 | I21: 0.1352393818 | J21: -2.841286935 | K21: 0.3677490745 | L21: 12.13571946 | M21: -1.044880641
F22: 21 | G22: =EXP(MMULT(It0!G22:H22,B$2:B$3)) -> 0.2147814184 | H22: 0.1768066379 | I22: 0.1455460507 | J22: -2.752915845 | K22: 0.3815049812 | L22: 12.97116936 | M22: -1.050251108
F23: 22 | G23: =EXP(MMULT(It0!G23:H23,B$2:B$3)) -> 0.2147814184 | H23: 0.1768066379 | I23: 0.1455460507 | J23: -2.752915845 | K23: 0.3815049812 | L23: 12.97116936 | M23: -1.050251108
F24: 23 | G24: =EXP(MMULT(It0!G24:H24,B$2:B$3)) -> 0.2147814184 | H24: 0.1768066379 | I24: 0.1455460507 | J24: 4.117761821 | K24: 0.3815049812 | L24: 12.97116936 | M24: 1.570946646
F25: 24 | G25: =EXP(MMULT(It0!G25:H25,B$2:B$3)) -> 0.2147814184 | H25: 0.1768066379 | I25: 0.1455460507 | J25: -2.752915845 | K25: 0.3815049812 | L25: 12.97116936 | M25: -1.050251108
F26: 25 | G26: =EXP(MMULT(It0!G26:H26,B$2:B$3)) -> 0.2147814184 | H26: 0.1768066379 | I26: 0.1455460507 | J26: -2.752915845 | K26: 0.3815049812 | L26: 12.97116936 | M26: -1.050251108
F27: 26 | G27: =EXP(MMULT(It0!G27:H27,B$2:B$3)) -> 0.2399767366 | H27: 0.1935332571 | I27: 0.1560781355 | J27: -2.667190028 | K27: 0.3950672544 | L27: 13.8273539 | M27: -1.053719441
F28: 27 | G28: =EXP(MMULT(It0!G28:H28,B$2:B$3)) -> 0.2399767366 | H28: 0.1935332571 | I28: 0.1560781355 | J28: -2.667190028 | K28: 0.3950672544 | L28: 13.8273539 | M28: -1.053719441
F29: 28 | G29: =EXP(MMULT(It0!G29:H29,B$2:B$3)) -> 0.2681276365 | H29: 0.2114358435 | I29: 0.1667307276 | J29: -2.584419793 | K29: 0.4083267412 | L29: 14.69976268 | M29: -1.055287712
F30: 29 | G30: =EXP(MMULT(It0!G30:H30,B$2:B$3)) -> 0.2681276365 | H30: 0.2114358435 | I30: 0.1667307276 | J30: 3.4132749 | K30: 0.4083267412 | L30: 14.69976268 | M30: 1.393731417
F31: 30 | G31: =EXP(MMULT(It0!G31:H31,B$2:B$3)) -> 0.2681276365 | H31: 0.2114358435 | I31: 0.1667307276 | J31: -2.584419793 | K31: 0.4083267412 | L31: 14.69976268 | M31: -1.055287712
F32: 31 | G32: =EXP(MMULT(It0!G32:H32,B$2:B$3)) -> 0.2995808281 | H32: 0.2305211201 | I32: 0.1773811333 | J32: -2.504951849 | K32: 0.4211663962 | L32: 15.58315666 | M32: -1.055001543
F33: 32 | G33: =EXP(MMULT(It0!G33:H33,B$2:B$3)) -> 0.2995808281 | H33: 0.2305211201 | I33: 0.1773811333 | J33: 3.132626294 | K33: 0.4211663962 | L33: 15.58315666 | M33: 1.319356927
F34: 33 | G34: =EXP(MMULT(It0!G34:H34,B$2:B$3)) -> 0.2995808281 | H34: 0.2305211201 | I34: 0.1773811333 | J34: -2.504951849 | K34: 0.4211663962 | L34: 15.58315666 | M34: -1.055001543
F35: 34 | G35: =EXP(MMULT(It0!G35:H35,B$2:B$3)) -> 0.3347236926 | H35: 0.2507812624 | I35: 0.1878900208 | J35: -2.429173578 | K35: 0.4334628252 | L35: 16.47158736 | M35: -1.052956442
F36: 35 | G36: =EXP(MMULT(It0!G36:H36,B$2:B$3)) -> 0.3347236926 | H36: 0.2507812624 | I36: 0.1878900208 | J36: -2.429173578 | K36: 0.4334628252 | L36: 16.47158736 | M36: -1.052956442
F37: 36 | G37: =EXP(MMULT(It0!G37:H37,B$2:B$3)) -> 0.3739890536 | H37: 0.2721921638 | I37: 0.1981035898 | J37: -2.357517804 | K37: 0.4450882944 | L37: 17.35844348 | M37: -1.049303578
F38: 37 | G38: =EXP(MMULT(It0!G38:H38,B$2:B$3)) -> 0.3739890536 | H38: 0.2721921638 | I38: 0.1981035898 | J38: 2.690346301 | K38: 0.4450882944 | L38: 17.35844348 | M38: 1.197441646
F39: 38 | G39: =EXP(MMULT(It0!G39:H39,B$2:B$3)) -> 0.4178605079 | H39: 0.2947120014 | I39: 0.2078568376 | J39: -2.290468123 | K39: 0.4559131909 | L39: 18.23652763 | M39: -1.044254631
F40: 39 | G40: =EXP(MMULT(It0!G40:H40,B$2:B$3)) -> 0.4178605079 | H40: 0.2947120014 | I40: 0.2078568376 | J40: 2.520535506 | K40: 0.4559131909 | L40: 18.23652763 | M40: 1.149145385
F41: 40 | G41: =EXP(MMULT(It0!G41:H41,B$2:B$3)) -> 0.4668783816 | H41: 0.3182802252 | I41: 0.2169779234 | J41: -2.228564862 | K41: 0.4658088915 | L41: 19.09816455 | M41: -1.038085328
F42: 41 | G42: =EXP(MMULT(It0!G42:H42,B$2:B$3)) -> 0.4668783816 | H42: 0.3182802252 | I42: 0.2169779234 | J42: -2.228564862 | K42: 0.4658088915 | L42: 19.09816455 | M42: -1.038085328
F43: 42 | G43: =EXP(MMULT(It0!G43:H43,B$2:B$3)) -> 0.5216463846 | H43: 0.3428170894 | I43: 0.2252935326 | J43: -2.172411729 | K43: 0.4746509587 | L43: 19.93534027 | M43: -1.03113731
F44: 43 | G44: =EXP(MMULT(It0!G44:H44,B$2:B$3)) -> 0.5216463846 | H44: 0.3428170894 | I44: 0.2252935326 | J44: -2.172411729 | K44: 0.4746509587 | L44: 19.93534027 | M44: -1.03113731
F45: 44 | G45: =EXP(MMULT(It0!G45:H45,B$2:B$3)) -> 0.5216463846 | H45: 0.3428170894 | I45: 0.2252935326 | J45: -2.172411729 | K45: 0.4746509587 | L45: 19.93534027 | M45: -1.03113731
F46: 45 | G46: =EXP(MMULT(It0!G46:H46,B$2:B$3)) -> 0.5216463846 | H46: 0.3428170894 | I46: 0.2252935326 | J46: 2.266242095 | K46: 0.4746509587 | L46: 19.93534027 | M46: 1.075673983
F47: 46 | G47: =EXP(MMULT(It0!G47:H47,B$2:B$3)) -> 0.5828390461 | H47: 0.3682238238 | I47: 0.2326350394 | J47: -2.122683256 | K47: 0.4823225471 | L47: 20.73986952 | M47: -1.023817994
F48: 47 | G48: =EXP(MMULT(It0!G48:H48,B$2:B$3)) -> 0.5828390461 | H48: 0.3682238238 | I48: 0.2326350394 | J48: -2.122683256 | K48: 0.4823225471 | L48: 20.73986952 | M48: -1.023817994
F49: 48 | G49: =EXP(MMULT(It0!G49:H49,B$2:B$3)) -> 0.5828390461 | H49: 0.3682238238 | I49: 0.2326350394 | J49: 2.175895336 | K49: 0.4823225471 | L49: 20.73986952 | M49: 1.049483381
F50: 49 | G50: =EXP(MMULT(It0!G50:H50,B$2:B$3)) -> 0.651210022 | H50: 0.3943835208 | I50: 0.2388451593 | J50: -2.080133096 | K50: 0.4887178729 | L50: 21.50358641 | M50: -1.016598222
F51: 50 | G51: =EXP(MMULT(It0!G51:H51,B$2:B$3)) -> 0.651210022 | H51: 0.3943835208 | I51: 0.2388451593 | J51: -2.080133096 | K51: 0.4887178729 | L51: 21.50358641 | M51: -1.016598222
F52: 51 | G52: =EXP(MMULT(It0!G52:H52,B$2:B$3)) -> 0.651210022 | H52: 0.3943835208 | I52: 0.2388451593 | J52: 2.106679828 | K52: 0.4887178729 | L52: 21.50358641 | M52: 1.029572085
F53: 52 | G53: =EXP(MMULT(It0!G53:H53,B$2:B$3)) -> 0.651210022 | H53: 0.3943835208 | I53: 0.2388451593 | J53: 2.106679828 | K53: 0.4887178729 | L53: 21.50358641 | M53: 1.029572085
F54: 53 | G54: =EXP(MMULT(It0!G54:H54,B$2:B$3)) -> 0.7276013775 | H54: 0.4211627676 | I54: 0.2437846908 | J54: -2.045603317 | K54: 0.4937455729 | L54: 22.21855078 | M54: -1.010007582
F55: 54 | G55: =EXP(MMULT(It0!G55:H55,B$2:B$3)) -> 0.7276013775 | H55: 0.4211627676 | I55: 0.2437846908 | J55: 2.056376987 | K55: 0.4937455729 | L55: 22.21855078 | M55: 1.015327034
F56: 55 | G56: =EXP(MMULT(It0!G56:H56,B$2:B$3)) -> 0.8129539575 | H56: 0.4484140119 | I56: 0.2473388858 | J56: -2.020034761 | K56: 0.4973317664 | L56: 22.87726125 | M56: -1.004627456
F57: 56 | G57: =EXP(MMULT(It0!G57:H57,B$2:B$3)) -> 0.8129539575 | H57: 0.4484140119 | I57: 0.2473388858 | J57: 2.023001159 | K57: 0.4973317664 | L57: 22.87726125 | M57: 1.00610274
F58: 57 | G58: =EXP(MMULT(It0!G58:H58,B$2:B$3)) -> 0.9083189744 | H58: 0.4759785898 | I58: 0.2494229719 | J58: -2.004478643 | K58: 0.4994226385 | L58: 23.47286401 | M58: -1.001082013
F59: 58 | G59: =EXP(MMULT(It0!G59:H59,B$2:B$3)) -> 0.9083189744 | H59: 0.4759785898 | I59: 0.2494229719 | J59: -2.004478643 | K59: 0.4994226385 | L59: 23.47286401 | M59: -1.001082013
F60: 59 | G60: =EXP(MMULT(It0!G60:H60,B$2:B$3)) -> 0.9083189744 | H60: 0.4759785898 | I60: 0.2494229719 | J60: 2.004775166 | K60: 0.4994226385 | L60: 23.47286401 | M60: 1.001230103
F61: 60 | G61: =EXP(MMULT(It0!G61:H61,B$2:B$3)) -> 1.014870955 | H61: 0.5036902996 | I61: 0.2499863817 | J61: -2.000109489 | K61: 0.4999863815 | L61: 23.99934631 | M61: -1.000027506
F62: 61 | G62: =EXP(MMULT(It0!G62:H62,B$2:B$3)) -> 1.014870955 | H62: 0.5036902996 | I62: 0.2499863817 | J62: 2.000108416 | K62: 0.4999863815 | L62: 23.99934631 | M62: 1.00002697
F63: 62 | G63: =EXP(MMULT(It0!G63:H63,B$2:B$3)) -> 1.014870955 | H63: 0.5036902996 | I63: 0.2499863817 | J63: 2.000108416 | K63: 0.4999863815 | L63: 23.99934631 | M63: 1.00002697
F64: 63 | G64: =EXP(MMULT(It0!G64:H64,B$2:B$3)) -> 1.133922206 | H64: 0.5313793553 | I64: 0.2490153361 | J64: -2.008239604 | K64: 0.4990143646 | L64: 24.45170386 | M64: -1.00214041
F65: 64 | G65: =EXP(MMULT(It0!G65:H65,B$2:B$3)) -> 1.133922206 | H65: 0.5313793553 | I65: 0.2490153361 | J65: -2.008239604 | K65: 0.4990143646 | L65: 24.45170386 | M65: -1.00214041
F66: 65 | G66: =EXP(MMULT(It0!G66:H66,B$2:B$3)) -> 1.133922206 | H66: 0.5313793553 | I66: 0.2490153361 | J66: 2.007577316 | K66: 0.4990143646 | L66: 24.45170386 | M66: 1.001809919
F67: 66 | G67: =EXP(MMULT(It0!G67:H67,B$2:B$3)) -> 1.266938977 | H67: 0.5588765247 | I67: =H67*(1-H67) -> 0.2465335548 | J67: -2.03033524 | K67: 0.4965214546 | L67: 24.82607273 | M67: -1.008105007
F68: 67 | G68: =EXP(MMULT(It0!G68:H68,B$2:B$3)) -> 1.266938977 | H68: =G68/(1+G68) -> 0.5588765247 | I68: 0.2465335548 | J68: 2.025907735 | K68: 0.4965214546 | L68: 24.82607273 | M68: 1.005906655
F69: 68 | G69: =EXP(MMULT(It0!G69:H69,B$2:B$3)) -> 1.415559518 | H69: 0.5860172385 | I69: 0.2426010347 | J69: -2.068034646 | K69: 0.4925454646 | L69: 25.11981869 | M69: -1.018601086
F70: 69 | G70: =EXP(MMULT(It0!G70:H70,B$2:B$3)) -> 1.581614258 | H70: 0.6126454612 | I70: 0.2373110001 | J70: -2.12316825 | K70: 0.4871457688 | L70: 25.33157998 | M70: -1.034292429
F71: 70 | G71: =EXP(MMULT(It0!G71:H71,B$2:B$3)) -> 1.581614258 | H71: 0.6126454612 | I71: 0.2373110001 | J71: 2.090711426 | K71: 0.4871457688 | L71: 25.33157998 | M71: 1.018481225
F72: 71 | G72: =EXP(MMULT(It0!G72:H72,B$2:B$3)) -> 1.767148345 | H72: 0.6386171338 | I72: 0.2307852902 | J72: 2.135250592 | K72: 0.4804011763 | L72: 25.46126235 | M72: 1.025776896
F73: 72 | G73: =EXP(MMULT(It0!G73:H73,B$2:B$3)) -> 1.767148345 | H73: 0.6386171338 | I73: 0.2307852902 | J73: 2.135250592 | K73: 0.4804011763 | L73: 25.46126235 | M73: 1.025776896
F74: 73 | G74: =EXP(MMULT(It0!G74:H74,B$2:B$3)) -> 1.97444684 | H74: 0.663803035 | I74: 0.2231685657 | J74: 2.186759245 | K74: 0.4724072033 | L74: 25.50998898 | M74: 1.033040819
F75: 74 | G75: =EXP(MMULT(It0!G75:H75,B$2:B$3)) -> 2.206062855 | H75: 0.688090956 | I75: 0.2146217923 | J75: -2.414853442 | K75: 0.4632729134 | L75: 25.48001024 | M75: -1.118736189
F76: 75 | G76: =EXP(MMULT(It0!G76:H76,B$2:B$3)) -> 2.206062855 | H76: 0.688090956 | I76: 0.2146217923 | J76: 2.244505654 | K76: 0.4632729134 | L76: 25.48001024 | M76: 1.039818674
F77: 76 | G77: =EXP(MMULT(It0!G77:H77,B$2:B$3)) -> 2.206062855 | H77: 0.688090956 | I77: 0.2146217923 | J77: 2.244505654 | K77: 0.4632729134 | L77: 25.48001024 | M77: 1.039818674
F78: 77 | G78: =EXP(MMULT(It0!G78:H78,B$2:B$3)) -> 2.464849001 | H78: 0.7113871341 | I78: 0.2053154795 | J78: 2.307834914 | K78: 0.4531175118 | L78: 25.37458066 | M78: 1.045720414
F79: 78 | G79: =EXP(MMULT(It0!G79:H79,B$2:B$3)) -> 2.464849001 | H79: 0.7113871341 | I79: 0.2053154795 | J79: 2.307834914 | K79: 0.4531175118 | L79: 25.37458066 | M79: 1.045720414
F80: 79 | G80: =EXP(MMULT(It0!G80:H80,B$2:B$3)) -> 2.464849001 | H80: 0.7113871341 | I80: 0.2053154795 | J80: 2.307834914 | K80: 0.4531175118 | L80: 25.37458066 | M80: 1.045720414
F81: 80 | G81: =EXP(MMULT(It0!G81:H81,B$2:B$3)) -> 2.753992518 | H81: 0.7336169438 | I81: 0.1954231236 | J81: -2.740940835 | K81: 0.4420668768 | L81: 25.19781198 | M81: -1.211679154
F82: 81 | G82: =EXP(MMULT(It0!G82:H82,B$2:B$3)) -> 2.753992518 | H82: 0.7336169438 | I82: 0.1954231236 | J82: -2.740940835 | K82: 0.4420668768 | L82: 25.19781198 | M82: -1.211679154
F83: 82 | G83: =EXP(MMULT(It0!G83:H83,B$2:B$3)) -> 2.753992518 | H83: 0.7336169438 | I83: 0.1954231236 | J83: 2.376160876 | K83: 0.4420668768 | L83: 25.19781198 | M83: 1.050422017
F84: 83 | G84: =EXP(MMULT(It0!G84:H84,B$2:B$3)) -> 2.753992518 | H84: 0.7336169438 | I84: 0.1954231236 | J84: 2.376160876 | K84: 0.4420668768 | L84: 25.19781198 | M84: 1.050422017
F85: 84 | G85: =EXP(MMULT(It0!G85:H85,B$2:B$3)) -> 2.753992518 | H85: 0.7336169438 | I85: 0.1954231236 | J85: 2.376160876 | K85: 0.4420668768 | L85: 25.19781198 | M85: 1.050422017
F86: 85 | G86: =EXP(MMULT(It0!G86:H86,B$2:B$3)) -> 2.753992518 | H86: 0.7336169438 | I86: 0.1954231236 | J86: 2.376160876 | K86: 0.4420668768 | L86: 25.19781198 | M86: 1.050422017
F87: 86 | G87: =EXP(MMULT(It0!G87:H87,B$2:B$3)) -> 3.077054533 | H87: 0.7547248897 | I87: 0.1851152305 | J87: -2.953081714 | K87: 0.4302501953 | L87: 24.95451133 | M87: -1.270563984
F88: 87 | G88: =EXP(MMULT(It0!G88:H88,B$2:B$3)) -> 3.077054533 | H88: 0.7547248897 | I88: 0.1851152305 | J88: 2.448958934 | K88: 0.4302501953 | L88: 24.95451133 | M88: 1.05366506
F89: 88 | G89: =EXP(MMULT(It0!G89:H89,B$2:B$3)) -> 3.077054533 | H89: 0.7547248897 | I89: 0.1851152305 | J89: 2.448958934 | K89: 0.4302501953 | L89: 24.95451133 | M89: 1.05366506
F90: 89 | G90: =EXP(MMULT(It0!G90:H90,B$2:B$3)) -> 3.438013914 | H90: 0.7746739827 | I90: 0.1745542032 | J90: 2.52575956 | K90: 0.4177968445 | L90: 24.65001382 | M90: 1.055254374
F91: 90 | G91: =EXP(MMULT(It0!G91:H91,B$2:B$3)) -> 3.438013914 | H91: 0.7746739827 | I91: 0.1745542032 | J91: 2.52575956 | K91: 0.4177968445 | L91: 24.65001382 | M91: 1.055254374
F92: 91 | G92: =EXP(MMULT(It0!G92:H92,B$2:B$3)) -> 3.841316281 | H92: 0.7934446043 | I92: 0.1638902642 | J92: -3.495501191 | K92: 0.4048336253 | L92: 24.29001752 | M92: -1.41509642
F93: 92 | G93: =EXP(MMULT(It0!G93:H93,B$2:B$3)) -> 3.841316281 | H93: 0.7934446043 | I93: 0.1638902642 | J93: 2.606142521 | K93: 0.4048336253 | L93: 24.29001752 | M93: 1.055054125
F94: 93 | G94: =EXP(MMULT(It0!G94:H94,B$2:B$3)) -> 4.291928752 | H94: 0.8110329812 | I94: 0.1532584846 | J94: 2.689731705 | K94: 0.3914824193 | L94: 23.88042758 | M94: 1.052982675
F95: 94 | G95: =EXP(MMULT(It0!G95:H95,B$2:B$3)) -> 4.795401125 | H95: 0.8274493899 | I95: 0.1427768971 | J95: 2.776190488 | K95: 0.3778583029 | L95: 23.42721478 | M95: 1.049006626
F96: 95 | G96: =EXP(MMULT(It0!G96:H96,B$2:B$3)) -> 4.795401125 | H96: 0.8274493899 | I96: 0.1427768971 | J96: 2.776190488 | K96: 0.3778583029 | L96: 23.42721478 | M96: 1.049006626
F97: 96 | G97: =EXP(MMULT(It0!G97:H97,B$2:B$3)) -> 5.357934225 | H97: 0.8427162086 | I97: 0.1325456003 | J97: 2.865217591 | K97: 0.3640681259 | L97: 22.93629193 | M97: 1.043134399
F98: 97 | G98: =EXP(MMULT(It0!G98:H98,B$2:B$3)) -> 5.986456275 | H98: 0.8568659188 | I98: 0.122646716 | J98: -5.196956644 | K98: 0.3502095316 | L98: 22.41341002 | M98: -1.820023752
F99: 98 | G99: =EXP(MMULT(It0!G99:H99,B$2:B$3)) -> 5.986456275 | H99: 0.8568659188 | I99: 0.122646716 | J99: 2.956543363 | K99: 0.3502095316 | L99: 22.41341002 | M99: 1.035409666
F100: 99 | G100: =EXP(MMULT(It0!G100:H100,B$2:B$3)) -> 6.688708227 | H100: 0.8699391406 | I100: 0.1131450323 | J100: 3.049926465 | K100: 0.3363703796 | L100: 21.86407467 | M100: 1.025904923
F101: 100 | G101: =EXP(MMULT(It0!G101:H101,B$2:B$3)) -> 10.42394232 | H101: 0.912464544 | I101: 0.07987299993 | J101: 3.440038301 | K101: 0.2826181168 | L101: 19.50065006 | M101: 0.9722171462

Sheet It6
A1: Beta iteration (i-1) | E1: Beta (iteration i) | G1: exp(X*beta) | H1: Calcolo del vettore p =probabilità stimate dato beta | I1: Calcolo diagonale principale matrice W | J1: Calcolo di z | K1: Calcolo di Xw | M1: Calcolo di zw
A2: beta0 | B2: ='It5'!E2:E3 -> -5.309453374 | E2: =Q4 -> -5.309453374 | F2: 1 | G2: =EXP(MMULT(It0!G2:H2,B$2:B$3)) -> 0.04545508744 | H2: =G2/(1+G2) -> 0.04347875675 | I2: =H2*(1-H2) -> 0.04158835446 | J2: =MMULT(X,B2:B3)+(y-H2:H101)/I2:I101 -> -4.136485617 | K2: =SQRT(I2:I101)*X -> 0.2039322301 | L2: 4.078644601 | M2: =SQRT(I2:I101)*J2:J101 -> -0.8435627366 | P2: Calcolo del nuovo beta
A3: beta1 | B3: 0.1109211422 | E3: =P4 -> 0.1109211422 | F3: 2 | G3: =EXP(MMULT(It0!G3:H3,B$2:B$3)) -> 0.06340154155 | H3: =G3/(1+G3) -> 0.05962144973 | I3: =H3*(1-H3) -> 0.05606673246 | J3: -3.821668645 | K3: 0.2367841474 | L3: 5.44603539 | M3: -0.9049105517
F4: 3 | G4: =EXP(MMULT(It0!G4:H4,B$2:B$3)) -> 0.07083897319 | H4: =G4/(1+G4) -> 0.0661527783 | I4: 0.06177658822 | J4: -3.718184934 | K4: 0.2485489654 | L4: 5.965175171 | M4: -0.9241510187 | P4: =LINEST(M2:M101,K2:L101,0,1) -> 0.1109211422 | Q4: -5.309453374
A5: Iterazione | B5: 6 | F5: 4 | G5: =EXP(MMULT(It0!G5:H5,B$2:B$3)) -> 0.0791488661 | H5: 0.07334378841 | I5: 0.06796447711 | J5: -3.615573685 | K5: 0.2606999753 | L5: 6.517499382 | M5: -0.9425799703 | P5: 0.02453907375 | Q5: 1.156235433
A6: Criterio di convergenza | F6: 5 | G6: =EXP(MMULT(It0!G6:H6,B$2:B$3)) -> 0.0791488661 | H6: 0.07334378841 | I6: 0.06796447711 | J6: 11.09799497 | K6: 0.2606999753 | L6: 6.517499382 | M6: 2.893247014 | P6: 0.1772028804 | Q6: 1.019918585
B7: =SUMSQ(E2:E3-B2:B3)/SUMSQ(E2:E3) -> 3.388129317e-30 | F7: 6 | G7: =EXP(MMULT(It0!G7:H7,B$2:B$3)) -> 0.08843356591 | H7: 0.08124847366 | I7: 0.07464715919 | J7: -3.513937242 | K7: 0.2732163231 | L7: 7.1036244 | M7: -0.9600650129 | P7: 10.5529552 | Q7: 98
F8: 7 | G8: =EXP(MMULT(It0!G8:H8,B$2:B$3)) -> 0.08843356591 | H8: 0.08124847366 | I8: 0.07464715919 | J8: -3.513937242 | K8: 0.2732163231 | L8: 7.1036244 | M8: -0.9600650129 | P8: 21.95508389 | Q8: 101.9429241
F9: 8 | G9: =EXP(MMULT(It0!G9:H9,B$2:B$3)) -> 0.1103982063 | H9: 0.0994221764 | I9: 0.08953740724 | J9: -3.314059598 | K9: 0.2992280188 | L9: 8.378384527 | M9: -0.9916594879
F10: 9 | G10: =EXP(MMULT(It0!G10:H10,B$2:B$3)) -> 0.1103982063 | H10: 0.0994221764 | I10: 0.08953740724 | J10: -3.314059598 | K10: 0.2992280188 | L10: 8.378384527 | M10: -0.9916594879 | P10: Regressione di zw su Xw
F11: 10 | G11: =EXP(MMULT(It0!G11:H11,B$2:B$3)) -> 0.1233486661 | H11: 0.1098044355 | I11: 0.09774742142 | J11: -3.216088916 | K11: 0.3126458402 | L11: 9.066729367 | M11: -1.005496821
F12: 11 | G12: =EXP(MMULT(It0!G12:H12,B$2:B$3)) -> 0.1378183028 | H12: 0.1211250535 | I12: 0.1064537749 | J12: -3.119637411 | K12: 0.326272547 | L12: 9.78817641 | M12: -1.017852044
F13: 12 | G13: =EXP(MMULT(It0!G13:H13,B$2:B$3)) -> 0.1378183028 | H13: 0.1211250535 | I13: 0.1064537749 | J13: -3.119637411 | K13: 0.326272547 | L13: 9.78817641 | M13: -1.017852044
F14: 13 | G14: =EXP(MMULT(It0!G14:H14,B$2:B$3)) -> 0.1378183028 | H14: 0.1211250535 | I14: 0.1064537749 | J14: -3.119637411 | K14: 0.326272547 | L14: 9.78817641 | M14: -1.017852044
F15: 14 | G15: =EXP(MMULT(It0!G15:H15,B$2:B$3)) -> 0.1378183028 | H15: 0.1211250535 | I15: 0.1064537749 | J15: -3.119637411 | K15: 0.326272547 | L15: 9.78817641 | M15: -1.017852044
F16: 15 | G16: =EXP(MMULT(It0!G16:H16,B$2:B$3)) -> 0.1378183028 | H16: 0.1211250535 | I16: 0.1064537749 | J16: -3.119637411 | K16: 0.326272547 | L16: 9.78817641 | M16: -1.017852044
F17: 16 | G17: =EXP(MMULT(It0!G17:H17,B$2:B$3)) -> 0.1378183028 | H17: 0.1211250535 | I17: 0.1064537749 | J17: 6.274111198 | K17: 0.326272547 | L17: 9.78817641 | M17: 2.047070241
F18: 17 | G18: =EXP(MMULT(It0!G18:H18,B$2:B$3)) -> 0.1720488513 | H18: 0.1467932425 | I18: 0.1252449865 | J18: -2.932025675 | K18: 0.3538996842 | L18: 11.32478989 | M18: -1.03764296
F19: 18 | G19: =EXP(MMULT(It0!G19:H19,B$2:B$3)) -> 0.1720488513 | H19: 0.1467932425 | I19: 0.1252449865 | J19: -2.932025675 | K19: 0.3538996842 | L19: 11.32478989 | M19: -1.03764296
F20: 19 | G20: =EXP(MMULT(It0!G20:H20,B$2:B$3)) -> 0.1922313506 | H20: 0.1612366178 | I20: 0.1352393709 | J20: -2.841287032 | K20: 0.3677490597 | L20: 12.13571897 | M20: -1.044880634
F21: 20 | G21: =EXP(MMULT(It0!G21:H21,B$2:B$3)) -> 0.1922313506 | H21: 0.1612366178 | I21: 0.1352393709 | J21: -2.841287032 | K21: 0.3677490597 | L21: 12.13571897 | M21: -1.044880634
F22: 21 | G22: =EXP(MMULT(It0!G22:H22,B$2:B$3)) -> 0.2147813943 | H22: 0.1768066216 | I22: 0.1455460401 | J22: -2.752915933 | K22: 0.3815049674 | L22: 12.97116889 | M22: -1.050251103
F23: 22 | G23: =EXP(MMULT(It0!G23:H23,B$2:B$3)) -> 0.2147813943 | H23: 0.1768066216 | I23: 0.1455460401 | J23: -2.752915933 | K23: 0.3815049674 | L23: 12.97116889 | M23: -1.050251103
F24: 23 | G24: =EXP(MMULT(It0!G24:H24,B$2:B$3)) -> 0.2147813943 | H24: 0.1768066216 | I24: 0.1455460401 | J24: 4.117762232 | K24: 0.3815049674 | L24: 12.97116889 | M24: 1.570946746
F25: 24 | G25: =EXP(MMULT(It0!G25:H25,B$2:B$3)) -> 0.2147813943 | H25: 0.1768066216 | I25: 0.1455460401 | J25: -2.752915933 | K25: 0.3815049674 | L25: 12.97116889 | M25: -1.050251103
F26: 25 | G26: =EXP(MMULT(It0!G26:H26,B$2:B$3)) -> 0.2147813943 | H26: 0.1768066216 | I26: 0.1455460401 | J26: -2.752915933 | K26: 0.3815049674 | L26: 12.97116889 | M26: -1.050251103
F27: 26 | G27: =EXP(MMULT(It0!G27:H27,B$2:B$3)) -> 0.2399767113 | H27: 0.1935332407 | I27: 0.1560781254 | J27: -2.667190108 | K27: 0.3950672416 | L27: 13.82735346 | M27: -1.053719439
F28: 27 | G28: =EXP(MMULT(It0!G28:H28,B$2:B$3)) -> 0.2399767113 | H28: 0.1935332407 | I28: 0.1560781254 | J28: -2.667190108 | K28: 0.3950672416 | L28: 13.82735346 | M28: -1.053719439
F29: 28 | G29: =EXP(MMULT(It0!G29:H29,B$2:B$3)) -> 0.2681276102 | H29: 0.2114358271 | I29: 0.1667307181 | J29: -2.584419865 | K29: 0.4083267296 | L29: 14.69976227 | M29: -1.055287711
F30: 29 | G30: =EXP(MMULT(It0!G30:H30,B$2:B$3)) -> 0.2681276102 | H30: 0.2114358271 | I30: 0.1667307181 | J30: 3.413275168 | K30: 0.4083267296 | L30: 14.69976227 | M30: 1.393731487
F31: 30 | G31: =EXP(MMULT(It0!G31:H31,B$2:B$3)) -> 0.2681276102 | H31: 0.2114358271 | I31: 0.1667307181 | J31: -2.584419865 | K31: 0.4083267296 | L31: 14.69976227 | M31: -1.055287711
F32: 31 | G32: =EXP(MMULT(It0!G32:H32,B$2:B$3)) -> 0.2995808008 | H32: 0.2305211039 | I32: 0.1773811245 | J32: -2.504951913 | K32: 0.4211663858 | L32: 15.58315628 | M32: -1.055001544
F33: 32 | G33: =EXP(MMULT(It0!G33:H33,B$2:B$3)) -> 0.2995808008 | H33: 0.2305211039 | I33: 0.1773811245 | J33: 3.132626508 | K33: 0.4211663858 | L33: 15.58315628 | M33: 1.319356984
F34: 33 | G34: =EXP(MMULT(It0!G34:H34,B$2:B$3)) -> 0.2995808008 | H34: 0.2305211039 | I34: 0.1773811245 | J34: -2.504951913 | K34: 0.4211663858 | L34: 15.58315628 | M34: -1.055001544
F35: 34 | G35: =EXP(MMULT(It0!G35:H35,B$2:B$3)) -> 0.3347236644 | H35: 0.2507812466 | I35: 0.1878900129 | J35: -2.429173634 | K35: 0.4334628161 | L35: 16.47158701 | M35: -1.052956444
F36: 35 | G36: =EXP(MMULT(It0!G36:H36,B$2:B$3)) -> 0.3347236644 | H36: 0.2507812466 | I36: 0.1878900129 | J36: -2.429173634 | K36: 0.4334628161 | L36: 16.47158701 | M36: -1.052956444
F37: 36 | G37: =EXP(MMULT(It0!G37:H37,B$2:B$3)) -> 0.3739890247 | H37: 0.2721921485 | I37: 0.1981035828 | J37: -2.357517853 | K37: 0.4450882865 | L37: 17.35844317 | M37: -1.049303581
F38: 37 | G38: =EXP(MMULT(It0!G38:H38,B$2:B$3)) -> 0.3739890247 | H38: 0.2721921485 | I38: 0.1981035828 | J38: 2.690346431 | K38: 0.4450882865 | L38: 17.35844317 | M38: 1.197441683
F39: 38 | G39: =EXP(MMULT(It0!G39:H39,B$2:B$3)) -> 0.4178604785 | H39: 0.2947119867 | I39: 0.2078568316 | J39: -2.290468164 | K39: 0.4559131843 | L39: 18.23652737 | M39: -1.044254634
F40: 39 | G40: =EXP(MMULT(It0!G40:H40,B$2:B$3)) -> 0.4178604785 | H40: 0.2947119867 | I40: 0.2078568316 | J40: 2.520535604 | K40: 0.4559131843 | L40: 18.23652737 | M40: 1.149145413
F41: 40 | G41: =EXP(MMULT(It0!G41:H41,B$2:B$3)) -> 0.466878352 | H41: 0.3182802114 | I41: 0.2169779184 | J41: -2.228564895 | K41: 0.4658088862 | L41: 19.09816433 | M41: -1.038085332
F42: 41 | G42: =EXP(MMULT(It0!G42:H42,B$2:B$3)) -> 0.466878352 | H42: 0.3182802114 | I42: 0.2169779184 | J42: -2.228564895 | K42: 0.4658088862 | L42: 19.09816433 | M42: -1.038085332
F43: 42 | G43: =EXP(MMULT(It0!G43:H43,B$2:B$3)) -> 0.5216463552 | H43: 0.3428170766 | I43: 0.2252935286 | J43: -2.172411756 | K43: 0.4746509545 | L43: 19.93534009 | M43: -1.031137314
F44: 43 | G44: =EXP(MMULT(It0!G44:H44,B$2:B$3)) -> 0.5216463552 | H44: 0.3428170766 | I44: 0.2252935286 | J44: -2.172411756 | K44: 0.4746509545 | L44: 19.93534009 | M44: -1.031137314
F45: 44 | G45: =EXP(MMULT(It0!G45:H45,B$2:B$3)) -> 0.5216463552 | H45: 0.3428170766 | I45: 0.2252935286 | J45: -2.172411756 | K45: 0.4746509545 | L45: 19.93534009 | M45: -1.031137314
F46: 45 | G46: =EXP(MMULT(It0!G46:H46,B$2:B$3)) -> 0.5216463552 | H46: 0.3428170766 | I46: 0.2252935286 | J46: 2.266242146 | K46: 0.4746509545 | L46: 19.93534009 | M46: 1.075673998
F47: 46 | G47: =EXP(MMULT(It0!G47:H47,B$2:B$3)) -> 0.5828390172 | H47: 0.3682238123 | I47: 0.2326350364 | J47: -2.122683276 | K47: 0.4823225439 | L47: 20.73986939 | M47: -1.023817998
F48: 47 | G48: =EXP(MMULT(It0!G48:H48,B$2:B$3)) -> 0.5828390172 | H48: 0.3682238123 | I48: 0.2326350364 | J48: -2.122683276 | K48: 0.4823225439 | L48: 20.73986939 | M48: -1.023817998
F49: 48 | G49: =EXP(MMULT(It0!G49:H49,B$2:B$3)) -> 0.5828390172 | H49: 0.3682238123 | I49: 0.2326350364 | J49: 2.175895371 | K49: 0.4823225439 | L49: 20.73986939 | M49: 1.049483391
F50: 49 | G50: =EXP(MMULT(It0!G50:H50,B$2:B$3)) -> 0.6512099944 | H50: 0.3943835106 | I50: 0.2388451572 | J50: -2.080133111 | K50: 0.4887178707 | L50: 21.50358631 | M50: -1.016598225
F51: 50 | G51: =EXP(MMULT(It0!G51:H51,B$2:B$3)) -> 0.6512099944 | H51: 0.3943835106 | I51: 0.2388451572 | J51: -2.080133111 | K51: 0.4887178707 | L51: 21.50358631 | M51: -1.016598225
F52: 51 | G52: =EXP(MMULT(It0!G52:H52,B$2:B$3)) -> 0.6512099944 | H52: 0.3943835106 | I52: 0.2388451572 | J52: 2.106679851 | K52: 0.4887178707 | L52: 21.50358631 | M52: 1.029572091
F53: 52 | G53: =EXP(MMULT(It0!G53:H53,B$2:B$3)) -> 0.6512099944 | H53: 0.3943835106 | I53: 0.2388451572 | J53: 2.106679851 | K53: 0.4887178707 | L53: 21.50358631 | M53: 1.029572091
F54: 53 | G54: =EXP(MMULT(It0!G54:H54,B$2:B$3)) -> 0.7276013517 | H54: 0.421162759 | I54: 0.2437846894 | J54: -2.045603326 | K54: 0.4937455716 | L54: 22.21855072 | M54: -1.010007584
F55: 54 | G55: =EXP(MMULT(It0!G55:H55,B$2:B$3)) -> 0.7276013517 | H55: 0.421162759 | I55: 0.2437846894 | J55: 2.056377 | K55: 0.4937455716 | L55: 22.21855072 | M55: 1.015327037
F56: 55 | G56: =EXP(MMULT(It0!G56:H56,B$2:B$3)) -> 0.8129539343 | H56: 0.4484140049 | I56: 0.2473388851 | J56: -2.020034767 | K56: 0.4973317656 | L56: 22.87726122 | M56: -1.004627457
F57: 56 | G57: =EXP(MMULT(It0!G57:H57,B$2:B$3)) -> 0.8129539343 | H57: 0.4484140049 | I57: 0.2473388851 | J57: 2.023001166 | K57: 0.4973317656 | L57: 22.87726122 | M57: 1.006102742
F58: 57 | G58: =EXP(MMULT(It0!G58:H58,B$2:B$3)) -> 0.9083189549 | H58: 0.4759785845 | I58: 0.2494229716 | J58: -2.004478645 | K58: 0.4994226382 | L58: 23.472864 | M58: -1.001082013
F59: 58 | G59: =EXP(MMULT(It0!G59:H59,B$2:B$3)) -> 0.9083189549 | H59: 0.4759785845 | I59: 0.2494229716 | J59: -2.004478645 | K59: 0.4994226382 | L59: 23.472864 | M59: -1.001082013
F60: 59 | G60: =EXP(MMULT(It0!G60:H60,B$2:B$3)) -> 0.9083189549 | H60: 0.4759785845 | I60: 0.2494229716 | J60: 2.004775168 | K60: 0.4994226382 | L60: 23.472864 | M60: 1.001230104
F61: 60 | G61: =EXP(MMULT(It0!G61:H61,B$2:B$3)) -> 1.01487094 | H61: 0.503690296 | I61: 0.2499863817 | J61: -2.000109488 | K61: 0.4999863815 | L61: 23.99934631 | M61: -1.000027506
F62: 61 | G62: =EXP(MMULT(It0!G62:H62,B$2:B$3)) -> 1.01487094 | H62: 0.503690296 | I62: 0.2499863817 | J62: 2.000108416 | K62: 0.4999863815 | L62: 23.99934631 | M62: 1.00002697
F63: 62 | G63: =EXP(MMULT(It0!G63:H63,B$2:B$3)) -> 1.01487094 | H63: 0.503690296 | I63: 0.2499863817 | J63: 2.000108416 | K63: 0.4999863815 | L63: 23.99934631 | M63: 1.00002697
F64: 63 | G64: =EXP(MMULT(It0!G64:H64,B$2:B$3)) -> 1.133922198 | H64: 0.5313793534 | I64: 0.2490153362 | J64: -2.008239603 | K64: 0.4990143647 | L64: 24.45170387 | M64: -1.00214041
F65: 64 | G65: =EXP(MMULT(It0!G65:H65,B$2:B$3)) -> 1.133922198 | H65: 0.5313793534 | I65: 0.2490153362 | J65: -2.008239603 | K65: 0.4990143647 | L65: 24.45170387 | M65: -1.00214041
F66: 65 | G66: =EXP(MMULT(It0!G66:H66,B$2:B$3)) -> 1.133922198 | H66: 0.5313793534 | I66: 0.2490153362 | J66: 2.007577315 | K66: 0.4990143647 | L66: 24.45170387 | M66: 1.001809918
F67: 66 | G67: =EXP(MMULT(It0!G67:H67,B$2:B$3)) -> 1.266938977 | H67: 0.5588765245 | I67: =H67*(1-H67) -> 0.2465335549 | J67: -2.03033524 | K67: 0.4965214546 | L67: 24.82607273 | M67: -1.008105007
F68: 67 | G68: =EXP(MMULT(It0!G68:H68,B$2:B$3)) -> 1.266938977 | H68: =G68/(1+G68) -> 0.5588765245 | I68: 0.2465335549 | J68: 2.025907735 | K68: 0.4965214546 | L68: 24.82607273 | M68: 1.005906655
F69: 68 | G69: =EXP(MMULT(It0!G69:H69,B$2:B$3)) -> 1.415559527 | H69: 0.58601724 | I69: 0.2426010344 | J69: -2.068034649 | K69: 0.4925454643 | L69: 25.11981868 | M69: -1.018601086
F70: 69 | G70: =EXP(MMULT(It0!G70:H70,B$2:B$3)) -> 1.581614279 | H70: 0.6126454644 | I70: 0.2373109993 | J70: -2.123168258 | K70: 0.4871457681 | L70: 25.33157994 | M70: -1.034292432
F71: 70 | G71: =EXP(MMULT(It0!G71:H71,B$2:B$3)) -> 1.581614279 | H71: 0.6126454644 | I71: 0.2373109993 | J71: 2.090711431 | K71: 0.4871457681 | L71: 25.33157994 | M71: 1.018481226
F72: 71 | G72: =EXP(MMULT(It0!G72:H72,B$2:B$3)) -> 1.767148381 | H72: 0.6386171385 | I72: 0.2307852889 | J72: 2.1352506 | K72: 0.480401175 | L72: 25.46126227 | M72: 1.025776897
F73: 72 | G73: =EXP(MMULT(It0!G73:H73,B$2:B$3)) -> 1.767148381 | H73: 0.6386171385 | I73: 0.2307852889 | J73: 2.1352506 | K73: 0.480401175 | L73: 25.46126227 | M73: 1.025776897
F74: 73 | G74: =EXP(MMULT(It0!G74:H74,B$2:B$3)) -> 1.974446894 | H74: 0.6638030411 | I74: 0.2231685637 | J74: 2.186759258 | K74: 0.4724072012 | L74: 25.50998886 | M74: 1.033040821
F75: 74 | G75: =EXP(MMULT(It0!G75:H75,B$2:B$3)) -> 2.206062931 | H75: 0.6880909634 | I75: 0.2146217895 | J75: -2.414853483 | K75: 0.4632729104 | L75: 25.48001007 | M75: -1.118736201
F76: 75 | G76: =EXP(MMULT(It0!G76:H76,B$2:B$3)) -> 2.206062931 | H76: 0.6880909634 | I76: 0.2146217895 | J76: 2.244505673 | K76: 0.4632729104 | L76: 25.48001007 | M76: 1.039818676
F77: 76 | G77: =EXP(MMULT(It0!G77:H77,B$2:B$3)) -> 2.206062931 | H77: 0.6880909634 | I77: 0.2146217895 | J77: 2.244505673 | K77: 0.4632729104 | L77: 25.48001007 | M77: 1.039818676
F78: 77 | G78: =EXP(MMULT(It0!G78:H78,B$2:B$3)) -> 2.464849103 | H78: 0.7113871426 | I78: 0.2053154759 | J78: 2.307834938 | K78: 0.4531175079 | L78: 25.37458044 | M78: 1.045720416
F79: 78 | G79: =EXP(MMULT(It0!G79:H79,B$2:B$3)) -> 2.464849103 | H79: 0.7113871426 | I79: 0.2053154759 | J79: 2.307834938 | K79: 0.4531175079 | L79: 25.37458044 | M79: 1.045720416
F80: 79 | G80: =EXP(MMULT(It0!G80:H80,B$2:B$3)) -> 2.464849103 | H80: 0.7113871426 | I80: 0.2053154759 | J80: 2.307834938 | K80: 0.4531175079 | L80: 25.37458044 | M80: 1.045720416
F81: 80 | G81: =EXP(MMULT(It0!G81:H81,B$2:B$3)) -> 2.753992651 | H81: 0.7336169532 | I81: 0.1954231192 | J81: -2.740940919 | K81: 0.4420668718 | L81: 25.19781169 | M81: -1.211679178
F82: 81 | G82: =EXP(MMULT(It0!G82:H82,B$2:B$3)) -> 2.753992651 | H82: 0.7336169532 | I82: 0.1954231192 | J82: -2.740940919 | K82: 0.4420668718 | L82: 25.19781169 | M82: -1.211679178
F83: 82 | G83: =EXP(MMULT(It0!G83:H83,B$2:B$3)) -> 2.753992651 | H83: 0.7336169532 | I83: 0.1954231192 | J83: 2.376160907 | K83: 0.4420668718 | L83: 25.19781169 | M83: 1.050422019
F84: 83 | G84: =EXP(MMULT(It0!G84:H84,B$2:B$3)) -> 2.753992651 | H84: 0.7336169532 | I84: 0.1954231192 | J84: 2.376160907 | K84: 0.4420668718 | L84: 25.19781169 | M84: 1.050422019
F85: 84 | G85: =EXP(MMULT(It0!G85:H85,B$2:B$3)) -> 2.753992651 | H85: 0.7336169532 | I85: 0.1954231192 | J85: 2.376160907 | K85: 0.4420668718 | L85: 25.19781169 | M85: 1.050422019
F86: 85 | G86: =EXP(MMULT(It0!G86:H86,B$2:B$3)) -> 2.753992651 | H86: 0.7336169532 | I86: 0.1954231192 | J86: 2.376160907 | K86: 0.4420668718 | L86: 25.19781169 | M86: 1.050422019
F87: 86 | G87: =EXP(MMULT(It0!G87:H87,B$2:B$3)) -> 3.077054703 | H87: 0.7547249 | I87: 0.1851152253 | J87: -2.953081829 | K87: 0.4302501892 | L87: 24.95451098 | M87: -1.270564016
F88: 87 | G88: =EXP(MMULT(It0!G88:H88,B$2:B$3)) -> 3.077054703 | H88: 0.7547249 | I88: 0.1851152253 | J88: 2.448958972 | K88: 0.4302501892 | L88: 24.95451098 | M88: 1.053665061
F89: 88 | G89: =EXP(MMULT(It0!G89:H89,B$2:B$3)) -> 3.077054703 | H89: 0.7547249 | I89: 0.1851152253 | J89: 2.448958972 | K89: 0.4302501892 | L89: 24.95451098 | M89: 1.053665061
F90: 89 | G90: =EXP(MMULT(It0!G90:H90,B$2:B$3)) -> 3.438014128 | H90: 0.7746739936 | I90: 0.1745541973 | J90: 2.525759604 | K90: 0.4177968373 | L90: 24.6500134 | M90: 1.055254374
F91: 90 | G91: =EXP(MMULT(It0!G91:H91,B$2:B$3)) -> 3.438014128 | H91: 0.7746739936 | I91: 0.1745541973 | J91: 2.525759604 | K91: 0.4177968373 | L91: 24.6500134 | M91: 1.055254374
F92: 91 | G92: =EXP(MMULT(It0!G92:H92,B$2:B$3)) -> 3.841316547 | H92: 0.7934446157 | I92: 0.1638902575 | J92: -3.495501388 | K92: 0.4048336171 | L92: 24.29001703 | M92: -1.415096471
F93: 92 | G93: =EXP(MMULT(It0!G93:H93,B$2:B$3)) -> 3.841316547 | H93: 0.7934446157 | I93: 0.1638902575 | J93: 2.606142572 | K93: 0.4048336171 | L93: 24.29001703 | M93: 1.055054124
F94: 93 | G94: =EXP(MMULT(It0!G94:H94,B$2:B$3)) -> 4.291929079 | H94: 0.8110329929 | I94: 0.1532584773 | J94: 2.689731763 | K94: 0.39148241 | L94: 23.88042701 | M94: 1.052982673
F95: 94 | G95: =EXP(MMULT(It0!G95:H95,B$2:B$3)) -> 4.795401524 | H95: 0.8274494018 | I95: 0.1427768893 | J95: 2.776190554 | K95: 0.3778582926 | L95: 23.42721414 | M95: 1.049006623
F96: 95 | G96: =EXP(MMULT(It0!G96:H96,B$2:B$3)) -> 4.795401524 | H96: 0.8274494018 | I96: 0.1427768893 | J96: 2.776190554 | K96: 0.3778582926 | L96: 23.42721414 | M96: 1.049006623
F97: 96 | G97: =EXP(MMULT(It0!G97:H97,B$2:B$3)) -> 5.357934708 | H97: 0.8427162206 | I97: 0.1325455921 | J97: 2.865217664 | K97: 0.3640681147 | L97: 22.93629123 | M97: 1.043134393
F98: 97 | G98: =EXP(MMULT(It0!G98:H98,B$2:B$3)) -> 5.986456856 | H98: 0.8568659307 | I98: 0.1226467075 | J98: -5.196957129 | K98: 0.3502095195 | L98: 22.41340925 | M98: -1.820023859
F99: 98 | G99: =EXP(MMULT(It0!G99:H99,B$2:B$3)) -> 5.986456856 | H99: 0.8568659307 | I99: 0.1226467075 | J99: 2.956543443 | K99: 0.3502095195 | L99: 22.41340925 | M99: 1.035409659
F100: 99 | G100: =EXP(MMULT(It0!G100:H100,B$2:B$3)) -> 6.688708924 | H100: 0.8699391523 | I100: 0.1131450236 | J100: 3.049926553 | K100: 0.3363703667 | L100: 21.86407383 | M100: 1.025904913
F101: 100 | G101: =EXP(MMULT(It0!G101:H101,B$2:B$3)) -> 10.4239437 | H101: 0.9124645546 | I101: 0.07987299123 | J101: 3.44003842 | K101: 0.2826181014 | L101: 19.500649 | M101: 0.972217127
